Cogmind - Beta 16 X2 @@@ ROGUE MODE // 2025.10.13 @ 21:09:03 Player: BlobtheGreat Result: Destroyed by H-88 Terminator with KE Penetrator Performance ------------- Evolutions (8) 4000 Regions Visited (27) 5400 Robots Destroyed (259) 1295 Value Destroyed (11216) 11216 Prototype IDs (85) 1700 Alien Tech Used (1) 200 Bonus (8966) 8966 TOTAL SCORE: 32777 Bonus ------- High Alert Combat Kills 2483 Follower Combat Kills 2306 Forged Quantum Companion 1000 Registered with UFD 300 Met Optimus in HQ 500 Met Zhirov 300 Met Warlord at Base 500 MAIN.C Attacked Warlord 500 Warlord Defense Kills 328 Built Enhanced Grunts 300 A7 Reached Mainframe 300 Met R17 at Cetus 500 Met R17 at Research 2000 Met Optimus at Protoforge 1000 Friendly Fire -3351 Cogmind --------- Core Integrity 0/1450 Matter 279/300 Energy 350/350 System Corruption 10% Temperature Cool (0) Movement Rolling (70) Location -2/Protoforge Parts ------- > --- POWER (2) -------- Improved Quantum Reactor > --- PROPULSION (6) --- Overtuned Medium Treads Overtuned Medium Treads Overtuned Huge Scrapsphere Overtuned Huge Scrapsphere > --- UTILITY (13) ----- 0bPrime Scrap Suit Spectral Analyzer Surveybot 17 Chip Experimental Targeting Computer Advanced Melee Analysis Suite Concept Weapon Articulator Experimental Core Analyzer Experimental Core Analyzer Experimental Core Analyzer Centrium Light Armor Plating > --- WEAPON (2) ------- Overtuned Railgun Quantum Companion > --- INVENTORY (5) ---- Neutrino Core Energy Well (350) Experimental Reaction Control System Transdimensional Reconstructor Vortex Driver (29) Peak State ------------ > --- POWER ------------ Light Quantum Reactor Improved Quantum Reactor > --- PROPULSION ------- Improved Antigrav System Cooled Antigrav System Combat Antigrav System Combat Linear Gravjet Combat Linear Gravjet Combat Linear Gravjet > --- UTILITY ---------- Large Storage Unit Spectral Analyzer Surveybot 17 Chip Advanced Melee Analysis Suite Concept Weapon Articulator Experimental Core Analyzer Experimental Core Analyzer Experimental Core Analyzer Experimental Core Analyzer Improved Armor Integrity Analyzer Advanced Phase Shifter Centrium Heavy Armor Plating > --- WEAPON ----------- Helical Railgun Quantum Companion > --- INVENTORY -------- Neutrino Core Improved Antigrav System Transdimensional Reconstructor Vortex Driver Helical Railgun UFD Drillbomb [Rating: 214] Favorites ----------- Power Cold Fusion Reactor Engine Ion Engine Power Core Micro Fission Core Reactor Cold Fusion Reactor Propulsion Combat Linear Gravjet Treads Light Treads Leg Flexi-carbon Leg Wheel Subdweller Monowheel Hover Unit Combat Linear Gravjet Flight Unit Cooled Nuclear Pulse Thruster Utility Large Storage Unit Device Improved Sensor Array Storage Large Storage Unit Processor Advanced Melee Analysis Suite Hackware Advanced Hacking Suite Protection Centrium Medium Armor Plating Weapon Companion Sword Energy Gun Small Laser Energy Cannon Enhanced Nova Cannon Ballistic Gun Light Assault Rifle Ballistic Cannon Overtuned Linear Accelerator Launcher Long-range Missile Launcher Special Weapon Improved Remote Datajack Slashing Weapon Companion Sword Piercing Weapon Plasma Lance Build | -11 -10 -10 -10 -8 -6 -6 -6 -6 -5 -5 -5 -5 -5 -5 -4 -4 -4 -4 -4 -4 -4 -3 -3 -3 -2 -2 -2 ------- Run | Yrd Mat Min Sub Scr Fac Ext Cet Arc Fac Was Fac Upp Upp Zhi Pro Fac Was Fac Upp Upp War Pro Res Tes Res Qua Frg Slots Evolved 16 | . . . . . 8 . . . 2 . . . . . . 2 . . . . . . 2 . 2 . . Power 1 | . . . . . 1 . . . . . . . . . . . . . . . . . . . . . . Propulsion 4 | . . . . . 2 . . . 1 . . . . . . 1 . . . . . . . . . . . Utility 11 | . . . . . 5 . . . 1 . . . . . . 1 . . . . . . 2 . 2 . . Weapon . | . . . . . . . . . . . . . . . . . . . . . . . . . . . . Parts Attached 259 | 8 1 3 9 8 25 32 11 6 2 3 26 2 3 3 . 11 8 6 . 2 7 . 7 12 3 5 56 Power 41 | 1 . 1 1 2 4 8 2 . . 1 4 . 1 1 . 1 1 1 . . 1 . . 1 . 2 8 Engine 15 | 1 . 1 1 2 3 6 . . . . 1 . . . . . . . . . . . . . . . . Core 8 | . . . . . 1 2 . . . . 1 . 1 . . 1 . . . . . . . . . 1 1 Reactor 18 | . . . . . . . 2 . . 1 2 . . 1 . . 1 1 . . 1 . . 1 . 1 7 Propulsion 70 | 2 . . 3 3 9 12 1 4 2 . 8 . 1 1 . 1 3 1 . . 1 . . 2 . 2 14 Treads 8 | 2 . . 2 1 . 1 . . . . . . . . . . . . . . . . . . . . 2 Leg 29 | . . . . 2 9 11 1 4 2 . . . . . . . . . . . . . . . . . . Wheel 3 | . . . 1 . . . . . . . . . . . . . . . . . . . . . . . 2 Hover 29 | . . . . . . . . . . . 8 . 1 . . 1 3 1 . . 1 . . 2 . 2 10 Flight 1 | . . . . . . . . . . . . . . 1 . . . . . . . . . . . . . Utility 109 | 2 1 1 . 1 11 10 5 2 . 1 12 1 1 1 . 7 2 4 . 2 2 . 6 6 3 . 28 Device 50 | 1 . 1 . . 8 4 2 1 . 1 4 . 1 . . 3 1 3 . . 1 . 3 4 2 . 10 Storage 8 | 1 1 . . 1 . . . 1 . . 2 . . . . 1 . . . . . . . . . . 1 Processor 25 | . . . . . 1 2 . . . . 3 . . . . 2 . . . 2 1 . 2 1 . . 11 Hackware 10 | . . . . . 1 . 1 . . . 3 1 . . . 1 . 1 . . . . . . 1 . 1 Protection 16 | . . . . . 1 4 2 . . . . . . 1 . . 1 . . . . . 1 1 . . 5 Artifact . | . . . . . . . . . . . . . . . . . . . . . . . . . . . . Weapon 39 | 3 . 1 5 2 1 2 3 . . 1 2 1 . . . 2 2 . . . 3 . 1 3 . 1 6 Energy Gun 6 | 2 . . 1 . . . . . . . . . . . . . . . . . 1 . . 1 . . 1 Energy Cannon 6 | . . . . . . 1 1 . . 1 . . . . . . 1 . . . 1 . . 1 . . . Ballistic Gun 8 | 1 . . 1 . 1 . . . . . 1 . . . . 1 . . . . . . . . . . 3 Ballistic Cannon 4 | . . . 1 . . . . . . . . 1 . . . . . . . . . . . . . . 2 Launcher 5 | . . 1 1 . . . 1 . . . 1 . . . . . 1 . . . . . . . . . . Special Weapon 7 | . . . 1 1 . 1 1 . . . . . . . . 1 . . . . 1 . 1 . . . . Impact Weapon . | . . . . . . . . . . . . . . . . . . . . . . . . . . . . Slashing Weapon 2 | . . . . 1 . . . . . . . . . . . . . . . . . . . . . 1 . Piercing Weapon 1 | . . . . . . . . . . . . . . . . . . . . . . . . 1 . . . Special Melee Weapon . | . . . . . . . . . . . . . . . . . . . . . . . . . . . . Unidentified Prototypes 48 | . . . . 2 . . 7 1 . . 4 . . 3 . . 4 . . . 5 . 2 10 . . 10 Parts Lost 89 | . . 2 2 . 18 8 1 8 1 . 12 1 4 . . . . 2 . . . . 2 1 . 2 25 Power 15 | . . 1 1 . 4 1 . 1 . . 1 . 1 . . . . 1 . . . . . . . . 4 Propulsion 31 | . . . 1 . 8 2 . 3 1 . 5 . 1 . . . . . . . . . . 1 . 1 8 Utility 35 | . . 1 . . 5 4 . 3 . . 5 1 2 . . . . 1 . . . . 2 . . 1 10 Weapon 8 | . . . . . 1 1 1 1 . . 1 . . . . . . . . . . . . . . . 3 Highest Loss Streak 8 | . . 2 2 . 7 3 1 8 1 . 3 1 3 . . . . 1 . . . . 2 1 . 1 4 To Critical Strikes 1 | . . . . . . 1 . . . . . . . . . . . . . . . . . . . . . Average Backups 11 | 4 7 8 9 11 12 14 14 13 10 12 14 14 14 12 14 14 15 14 15 15 15 15 14 14 13 13 7 Power 1 | . 1 . . . . . 2 . . 1 1 1 1 1 2 1 1 1 2 2 2 2 2 2 2 1 1 Propulsion 2 | 2 3 4 3 3 1 2 2 1 . 1 1 2 1 1 2 1 2 1 1 1 1 2 1 2 3 3 1 Utility 4 | . 1 . . 2 3 3 5 9 7 7 7 9 8 6 6 6 7 8 9 9 7 7 6 5 4 4 1 Weapon 2 | . 2 4 4 3 3 4 2 1 1 1 1 1 1 2 2 1 1 1 1 1 2 2 2 2 2 2 1 Tool/Special . | . . . . . . . . . . . . . . . . . . . . . . . . . . . . Unused Backups 36 | . 4 . 1 3 2 2 2 1 . 5 5 . . . . . 1 2 . 2 3 . . 1 . . 2 Power 6 | . . . . 1 . . . . . 1 . . . . . . . 1 . 1 1 . . 1 . . . Propulsion 14 | . 4 . 1 2 2 1 . . . 1 2 . . . . . 1 . . . . . . . . . . Utility 11 | . . . . . . 1 1 . . 2 3 . . . . . . . . 1 2 . . . . . 1 Weapon 3 | . . . . . . . 1 1 . 1 . . . . . . . . . . . . . . . . . Tool/Special 2 | . . . . . . . . . . . . . . . . . . 1 . . . . . . . . 1 Average Slot Usage (%) 91 | . 100 98 99 74 78 91 92 80 86 99 92 93 93 94 94 94 100 99 100 100 95 94 94 94 94 96 93 Engine 4 | . 14 13 13 12 4 9 10 2 5 1 . . . . . . . . . . . . . . . . . Reactor 4 | . . . . . . . 2 8 5 9 6 5 5 7 11 10 10 10 10 10 6 5 4 4 4 3 7 Treads 5 | . 28 28 21 14 . . . . . . . . . . . . . . . . . . . . . . . Leg 6 | . . . . 10 25 25 26 21 26 29 7 . . . . . . . . . . . . . . . . Hover 14 | . . . . . . . . . . . 21 29 28 29 29 31 31 30 31 31 31 31 28 27 26 25 24 Device 11 | . 14 13 14 7 18 17 7 9 17 23 12 5 4 5 5 9 9 10 10 9 7 9 11 8 12 12 10 Storage 7 | . 14 14 14 12 6 6 6 6 5 5 5 5 5 5 5 5 5 5 5 5 5 5 4 4 4 4 3 Processor 13 | . . . . . 4 6 13 8 5 5 13 17 17 17 17 16 21 21 21 21 21 21 24 28 26 26 29 Hackware 5 | . . . . . 5 6 6 6 5 5 5 15 17 13 11 10 10 10 10 10 10 10 9 9 13 9 2 Protection 2 | . . . . . . 5 7 4 5 5 5 . . 3 5 3 . . . . 2 . . . . 3 4 Energy Gun 2 | . 14 13 14 5 . . . . . . . . . . . . . . . . . . . . . . . Energy Cannon 1 | . . . . . . 1 2 2 . 1 1 . . . . . 1 5 5 4 1 4 4 4 3 4 1 Ballistic Gun 2 | . 14 14 6 5 1 . . . . . . . . . . . . . . . . . . . . . 1 Slashing Weapon 4 | . . . . 3 6 6 6 6 5 5 5 5 5 5 5 5 5 5 5 5 5 5 4 4 4 4 3 Peak Build Rating 214 | 7 8 8 11 20 56 75 98 97 91 105 107 95 96 99 103 121 141 141 138 143 147 147 165 166 183 186 214 Average Rating 94 | 5 7 7 9 11 48 62 78 76 82 99 92 88 88 94 99 113 130 137 138 138 143 146 159 158 181 182 195 On Entrance 95 | . 7 8 7 11 20 43 75 94 79 91 105 95 89 88 99 99 116 135 138 138 139 147 147 159 166 181 184 Avg Prop Armor Cover (%) . | . . . 6 . . . . . . . . . . . . . . . . . . . . . . . . Naked Turns 263 | . . . . 263 . . . . . . . . . . . . . . . . . . . . . . . Heaviest Build 94 | 13 18 18 24 34 61 75 90 74 60 84 86 49 50 62 62 73 67 69 67 75 89 89 79 78 93 94 91 Greatest Support 108 | 40 40 40 40 40 70 90 93 101 108 108 108 62 63 63 63 77 84 86 86 86 86 86 86 90 89 95 100 Greatest Overweight (x) 2 | . . . 1 1 1 . . 1 . . 1 . . . . . . . . . 1 1 . 1 1 1 2 Average Overweight (x) . | . . . . . . . . . . . . . . . . . . . . . . . . . . . . Largest Inventory Capacity 15 | 8 10 10 10 15 15 15 15 15 15 15 15 15 15 15 15 15 15 15 15 15 15 15 15 15 15 15 15 Average Capacity 13 | 7 8 10 10 12 15 15 15 15 15 15 15 15 15 15 15 15 15 15 15 15 15 15 15 15 15 15 14 Most Carried 15 | 7 10 10 10 15 15 15 15 15 15 15 15 15 15 14 14 15 15 15 15 15 15 15 15 15 15 15 15 Average Carried 12 | 4 7 8 9 11 12 14 14 13 10 14 14 14 14 12 13 14 15 14 15 15 14 15 14 14 14 14 11 Final Capacity 15 | 8 10 10 10 15 15 15 15 15 15 15 15 15 15 15 15 15 15 15 15 15 15 15 15 15 15 15 5 Final Carried 15 | 7 10 8 10 15 13 15 15 9 15 15 15 15 12 14 14 15 15 15 15 15 15 15 15 15 15 14 5 Scrap Suit Usage (%) 1 | . . . . . 1 1 . . . . . . . . . . . . . . . . . . . . 3 Parts Cannibalized 15 | . . . . . 2 3 . . . . . . . . . . . . . . . . . . . . 10 Class Distribution -------------------- 31% | Scavenger-Mutant 25% | Mutant 19% | Hacker-Ninja 14% | Hacker-Mutant 5% | Scavenger-Assassin Dominant Class ---------------- Mutant | -10/Materials Mutant | -10/Mines Scavenger-Mutant | -10/Subcaves Mutant | -8/Scraptown Scavenger-Mutant | -6/Factory Scavenger-Mutant | -6/Extension Mutant | -6/Cetus Scavenger-Mutant | -6/Archives Scavenger-Mutant | -5/Factory Scavenger-Assassin | -5/Waste Mutant | -5/Factory Hacker-Mutant | -5/Upper Caves Hacker-Mutant | -5/Upper Caves Hacker-Mutant | -5/Zhirov Hacker-Mutant | -4/Proximity Caves Hacker-Mutant | -4/Factory Hacker-Ninja | -4/Waste Hacker-Ninja | -4/Factory Hacker-Ninja | -4/Upper Caves Hacker-Ninja | -4/Upper Caves Hacker-Mutant | -4/Warlord Hacker-Mutant | -3/Proximity Caves Hacker-Ninja | -3/Research Hacker-Ninja | -3/Testing Hacker-Ninja | -2/Research Hacker-Assassin | -2/Quarantine Scavenger-Mutant | -2/Protoforge Resources | -11 -10 -10 -10 -8 -6 -6 -6 -6 -5 -5 -5 -5 -5 -5 -4 -4 -4 -4 -4 -4 -4 -3 -3 -3 -2 -2 -2 ----------- Run | Yrd Mat Min Sub Scr Fac Ext Cet Arc Fac Was Fac Upp Upp Zhi Pro Fac Was Fac Upp Upp War Pro Res Tes Res Qua Frg Matter Collected 7167 | 300 56 53 251 158 299 310 304 162 84 545 700 79 92 199 51 117 328 139 20 197 299 75 155 111 263 95 1725 Remotely . | . . . . . . . . . . . . . . . . . . . . . . . . . . . . Salvage Created 13464 | 171 367 45 184 . 1045 823 76 67 48 705 1093 . 233 304 . 131 63 725 59 143 98 . 1293 316 454 347 4674 Parts 647 | 16 27 11 12 . 50 29 16 8 5 . 59 . 2 3 1 14 . 38 3 9 6 . 26 33 24 25 230 Haulers Intercepted 2 | . 1 . . . . . . . . . 1 . . . . . . . . . . . . . . . . Recyclers Shooed 1 | . . . . . 1 . . . . . . . . . . . . . . . . . . . . . . Parts Field Recycled . | . . . . . . . . . . . . . . . . . . . . . . . . . . . . Retrieved Matter . | . . . . . . . . . . . . . . . . . . . . . . . . . . . . Parts Self-Destructed 21 | . . . 12 . . . . . . . . . 2 1 1 . . . . 5 . . . . . . . Prevented . | . . . . . . . . . . . . . . . . . . . . . . . . . . . . Parts Restored . | . . . . . . . . . . . . . . . . . . . . . . . . . . . . Kills | -11 -10 -10 -10 -8 -6 -6 -6 -6 -5 -5 -5 -5 -5 -5 -4 -4 -4 -4 -4 -4 -4 -3 -3 -3 -2 -2 -2 ------- Run | Yrd Mat Min Sub Scr Fac Ext Cet Arc Fac Was Fac Upp Upp Zhi Pro Fac Was Fac Upp Upp War Pro Res Tes Res Qua Frg Combat Hostiles Destroyed 186 | . 10 5 7 . 12 11 . . 1 4 14 . 5 . 2 6 . 5 . 5 4 1 3 3 3 5 80 Melee 101 | . . . . . 11 9 . . 1 . 14 . . . . 1 . 3 . 1 1 . 2 2 2 5 49 Guns 20 | . 10 2 2 . 1 . . . . . . . . . . . . . . . . . . . . . 5 Cannons 26 | . . . . . . 1 . . . . . . . . . . . 1 . . . . . 1 1 . 22 AOE 34 | . . 3 5 . . . . . . 4 . . 5 . 2 5 . . . 4 3 1 . . . . 2 Classes Destroyed 28 | 3 4 . 2 . 5 1 . . . 2 1 . 2 . 1 . 1 . 1 . . . . . . . 5 Worker 17 | 1 . . . . 3 . . . 1 . 4 . . . . . . 1 . . . . 2 . 5 . . Builder 8 | . . . . . 1 1 . . . . 1 . . . . 3 . 1 . . . . . 1 . . . Tunneler 6 | 6 . . . . . . . . . . . . . . . . . . . . . . . . . . . Hauler 2 | . 1 . . . . . . . . . 1 . . . . . . . . . . . . . . . . Recycler 17 | 1 . . . . 2 1 . . . . 2 . . . . . . 2 . . . . 8 . 1 . . Mechanic 2 | . . . . . . . . . . . . . 1 . . . . . . . . . . . . . 1 Operator 2 | . . . . . . . . . . . 1 . . . . . . . . . . . . . . . 1 Drone 22 | . . . . . . . . . . . . . . . 2 . . . . . . 1 . . . . 19 Turret 2 | . . . 2 . . . . . . . . . . . . . . . . . . . . . . . . Watcher 13 | . 3 . . . . . 2 . . . . . . . . . . 2 . . . . 1 1 2 . 2 Swarmer 35 | . 6 5 3 . . . . . 1 . 2 . . . . 5 . . . 4 3 . . . 1 . 5 Saboteur 2 | . . . . . . . . . . . . . . . . . . . . . . . . . . . 2 Grunt 30 | . 4 . . . 3 5 . . . . 1 . 3 . . . . 3 . 1 1 . 2 . . 1 6 Brawler 5 | . . . . . . . . . . . . . 2 . . . . . . . . . . . . . 3 Duelist 7 | . . . . . 1 1 . . . . . . . . . . . . . . . . . . . . 5 Protector 4 | . . . . . . . . . . . . . . . . . . . . . . . . . . . 4 Sentry 9 | . . . . . 2 4 . . . . . . . . . . . . . . . . 1 . . . 2 Specialist 2 | . . . . . . . . . . . . . . . . . . . . . . . . . . . 2 Hunter 10 | . . . . . 4 . . . . . . . . . . . . . . . . . . . 1 . 5 Programmer 33 | . . . . . 2 . . . . . 11 . . . . 1 . 2 . . . . . 3 1 4 9 Behemoth 1 | . . . . . . 1 . . . . . . . . . . . . . . . . . . . . . Compactor 4 | . . . . . . . . . . 4 . . . . . . . . . . . . . . . . . Hotshot 2 | . . . . . . . . . . . . . . . . . . . . . . . . . . . 2 Striker 6 | . . . . . . . . . . . . . . . . . . . . . . . . . . . 6 Executioner 9 | . . . . . . . . . . . . . . . . . . . . . . . . . . . 9 Subdweller 4 | . . . 4 . . . . . . . . . . . . . . . . . . . . . . . . Scrapoid 3 | . . . . . . . . . . 1 . . . . . . . . . . . . . . . . 2 Samaritan 2 | . . . . . . . . . . . . . . . . . . . 1 1 . . . . . . . Martyr 1 | . . . . . . . . . . . . . . . . . 1 . . . . . . . . . . Best Kill Streak 9 | 4 4 3 4 . 5 2 1 . 1 1 4 . 5 . 2 6 . 3 . 4 3 1 8 3 4 2 9 Combat Bots Only 9 | . 3 3 2 . 4 2 . . 1 1 3 . 5 . 2 5 . 3 . 4 3 1 1 3 2 2 9 Max Kills in Single Turn 3 | 1 2 2 2 . 1 1 1 . 1 1 1 . 2 . 2 3 1 1 1 3 2 1 1 1 1 1 2 Gunslinging 1 | . 1 1 . . . . . . . . . . . . . . . . . . . . . . . . . Exploded 3 | . . 2 2 . . . . . . 1 . . 2 . 2 3 . . . 3 2 1 . . . . 1 Melee 1 | . . . . . 1 1 . . 1 . 1 . . . . 1 . 1 . 1 1 . 1 1 1 1 1 Uniques/NPCs Destroyed 1 | . . . . . . . 1 . . . . . . . . . . . . . . . . . . . . A7 (-6/Cetus) Combat | -11 -10 -10 -10 -8 -6 -6 -6 -6 -5 -5 -5 -5 -5 -5 -4 -4 -4 -4 -4 -4 -4 -3 -3 -3 -2 -2 -2 -------- Run | Yrd Mat Min Sub Scr Fac Ext Cet Arc Fac Was Fac Upp Upp Zhi Pro Fac Was Fac Upp Upp War Pro Res Tes Res Qua Frg Hostile Shots Fired 1526 | . 43 33 53 . 216 195 33 1 4 . 197 . 17 . . 16 . 37 . 3 22 3 35 16 45 48 509 Missed 587 | . 10 7 25 . 65 65 12 1 2 . 68 . 7 . . 6 . 18 . 3 12 3 12 6 14 17 234 Deflected 12 | . . . . . . . . . . . . . . . . . . . . . . . 1 1 1 4 5 Hits 939 | . 33 26 28 . 151 130 21 . 2 . 129 . 10 . . 10 . 19 . . 10 . 23 10 31 31 275 Melee 31 | . . . . . 5 13 . . . . 1 . . . . . . . . . . . . . . . 12 Projectile 908 | . 33 26 28 . 146 117 21 . 2 . 128 . 10 . . 10 . 19 . . 10 . 23 10 31 31 263 AOE 1 | . . . . . . . . . . . . . . . . . . . . . . . . . . . 1 Critical Strikes 60 | . . . . . 8 6 5 . . . 11 . . . . 1 . 1 . . . . . 1 1 3 23 Actively Blocked 16 | . . . . . . . . . . . . . . . . . . . . . . . . . . . 16 Part Disruptions 5 | . . . . . . . . . . . 2 1 . . . . . . . . . . . 2 . . . Damage Taken 19518 | . 345 204 301 . 2343 1477 292 1218 21 4 2233 107 281 . 2 197 . 502 . . 203 . 629 214 346 379 8220 Core 3196 | . 105 23 93 . 297 290 41 211 10 . 304 41 23 . . 40 . 56 . . 10 . 110 74 58 28 1382 Absorbed by Shields 1752 | . . . . . 22 459 113 . 8 2 438 . . . . . . . . . 72 . . . 358 280 . Redirected to Shielding 146 | . . . . . . . . . . . . . . . . . . . . . . . . . . . 146 Ignored by Resistances 176 | . . . . . . . 176 . . . . . . . . . . . . . . . . . . . . Regen/Repaired (Parts) 886 | . . . . . 12 30 18 43 . . . . . . . . 350 16 . . 170 . . . . . 247 Core Remaining (%) 58 | 100 . . . 11 . . . 1 . . . . . . 62 . . . . . . 90 . 85 . . . Volleys Fired 378 | 22 46 11 35 . 8 9 14 . . 33 1 4 8 . 1 4 . 3 . 8 9 13 15 4 3 3 124 Largest 2 | 2 2 2 2 . 1 1 1 . . 1 1 1 1 . 1 1 . 1 . 1 1 1 1 1 1 1 1 Hottest 150 | 60 60 60 100 . 30 90 43 . . 43 81 51 43 . 43 43 . 120 . 120 100 120 120 120 150 50 150 Shots Fired 453 | 44 89 20 41 . 8 9 15 . . 33 1 3 8 . 1 4 . 3 . 7 9 13 15 4 3 3 120 Gun 228 | 44 89 18 12 . 8 . . . . . . . . . . . . . . . . . . . . . 57 Cannon 113 | . . . 2 . . 9 1 . . . 1 3 . . . . . 3 . 5 1 12 14 4 2 2 54 Launcher 89 | . . 2 12 . . . 11 . . 33 . . 8 . 1 3 . . . 2 7 1 . . . . 9 Special 23 | . . . 15 . . . 3 . . . . . . . . 1 . . . . 1 . 1 . 1 1 . Kinetic 191 | 22 46 9 6 . 8 . . . . . . 3 . . . . . . . . . . . . . . 97 Thermal 162 | 21 43 9 23 . . 9 1 . . . . . . . . . . 3 . 5 . 12 14 4 2 2 14 Explosive 89 | . . 2 12 . . . 11 . . 33 . . 8 . 1 3 . . . 2 7 1 . . . . 9 Electromagnetic 2 | 1 . . . . . . . . . . 1 . . . . . . . . . . . . . . . . Entropic 1 | . . . . . . . . . . . . . . . . . . . . . 1 . . . . . . Robot Hit Streak 13 | 8 13 11 4 . 3 6 10 . . 8 . . . . . 2 . 3 . . 1 . 1 . 3 4 13 Robot Miss Streak 8 | 3 8 2 2 . 2 2 2 . . 3 . . . . . . . . . 1 . . 1 . . 1 3 Penetration Max 2 | . . . . . . . . . . . . . . . . . . . . . . . . . . . 2 Secondary Targets 2 | . 1 1 . . . . . . . . . . . . . . . . . . . . . . . . . Max Gunslinging Chain 1 | . 1 1 . . . . . . . . . . . . . . . . . . . . . . . . . Autonomous 31 | . . . . . . . . . . . . . . . . . . 1 . 1 . . . 1 5 . 23 Shots Hit Robots 617 | 29 57 15 11 . 56 44 17 2 2 22 63 . 1 8 . 11 3 17 1 3 3 . 28 13 14 18 179 Core Hits 386 | 10 21 5 21 . 25 16 36 1 2 12 24 . 20 4 1 8 1 8 . 6 6 . 10 6 8 7 128 Critical Kills . | . . . . . . . . . . . . . . . . . . . . . . . . . . . . Critical Parts Destroyed 2 | . . . . . . . . . . . . . . . . . . . . . . . . . . . 2 Critical Strikes 21 | . . . . . 2 2 . . . . 2 . . . . . . . . . . . . 2 . 2 11 Destroy 3 | . . . . . . . . . . . . . . . . . . . . . . . . . . . 3 Blast 6 | . . . . . . . . . . . . . . . . . . . . . . . . . . . 6 Melee Attacks 641 | . . . . . 75 53 10 2 4 . 135 7 6 8 1 26 3 42 2 6 4 2 49 31 24 30 121 Impact . | . . . . . . . . . . . . . . . . . . . . . . . . . . . . Slashing 641 | . . . . . 75 53 10 2 4 . 135 7 6 8 1 26 3 42 2 6 4 2 49 31 24 30 121 Piercing . | . . . . . . . . . . . . . . . . . . . . . . . . . . . . Sneak Attacks 100 | . . . . . 7 5 10 . 1 . 11 . 1 . . 3 3 5 1 1 . . 12 2 6 . 32 Combat Hostiles 9 | . . . . . . . . . . . 1 . . . . 1 . 1 . . . . 1 . . . 5 Follow-up Attacks 4 | . . . . . . . . . . . . . . 1 . . . . . . . . . . . . 3 Damage Inflicted 43420 | 285 569 342 532 . 2431 1844 1794 230 117 4788 3382 . 1501 609 129 1136 328 1318 85 587 647 85 2510 1192 1628 1092 14259 Guns 2478 | 282 565 150 87 . 83 . . . . . . . . . . . . . . . . . . . . . 1311 Cannons 4645 | . . . . . . 240 . . . . . . . . . . . 144 . 91 . . . 81 501 . 3588 Explosions 10377 | . . 185 445 . . . 1177 . . 4788 . . 1401 . 129 547 . . . 286 516 85 . . . . 818 Melee 25902 | . . . . . 2348 1604 617 230 117 . 3378 . 100 609 . 589 328 1174 85 210 131 . 2510 1111 1127 1092 8542 Ramming 18 | 3 4 7 . . . . . . . . 4 . . . . . . . . . . . . . . . . Kinetic 3451 | 108 250 67 34 . 83 . . . . . . . . . . . . . . . . . . . . . 2909 Thermal 993 | 174 315 83 53 . . 240 . . . . . . . . . . . 44 . . . . . . 84 . . Explosive 10377 | . . 185 445 . . . 1177 . . 4788 . . 1401 . 129 547 . . . 286 516 85 . . . . 818 Electromagnetic . | . . . . . . . . . . . . . . . . . . . . . . . . . . . . Impact . | . . . . . . . . . . . . . . . . . . . . . . . . . . . . Slashing 25902 | . . . . . 2348 1604 617 230 117 . 3378 . 100 609 . 589 328 1174 85 210 131 . 2510 1111 1127 1092 8542 Piercing . | . . . . . . . . . . . . . . . . . . . . . . . . . . . . Phasic 2679 | . . . . . . . . . . . . . . . . . . 100 . 91 . . . 81 417 . 1990 Highest Corruption 28 | . . . . . 4 4 4 4 . . 28 28 28 28 28 1 1 2 2 2 2 . . 5 2 5 10 Average Corruption 9 | . . . . . 3 4 4 2 . . 16 28 28 28 28 1 1 1 2 2 2 . . 4 1 3 7 Corruption Purged 2 | . . . . . . . . 2 . . . . . . . . . . . . . . . . . . . Corruption Blocked . | . . . . . . . . . . . . . . . . . . . . . . . . . . . . Effects 351 | . . . . . 8 22 9 2 . . 92 19 16 6 22 2 4 5 3 7 . . . 3 5 9 117 Message Errors 77 | . . . . . 1 4 3 . . . 16 8 5 2 5 . 2 1 1 2 . . . 1 1 3 22 Matter Fused 103 | . . . . . 2 5 3 2 . . 28 4 7 2 7 2 2 1 . 2 . . . 1 1 . 34 Heat Flow Errors 44 | . . . . . 1 4 . . . . 9 4 1 1 2 . . 2 . . . . . . 1 1 18 Energy Discharges 43 | . . . . . . 3 . . . . 15 1 1 . 1 . . . 2 1 . . . 1 1 2 15 Parts Rejected 4 | . . . . . 1 . . . . . 1 . . . . . . . . . . . . . . . 2 Parts Fused 3 | . . . . . . 1 . . . . 1 . . . . . . . . . . . . . 1 . . Data Loss (minor) 40 | . . . . . 2 3 1 . . . 13 1 . 1 6 . . . . 1 . . . . . 2 10 Data Loss (major) 15 | . . . . . . . 1 . . . 4 . 1 . 1 . . . . . . . . . . 1 7 Misfires 3 | . . . . . . . 1 . . . . . . . . . . . . . . . . . . . 2 Alerts 8 | . . . . . 1 2 . . . . 2 . 1 . . . . 1 . . . . . . . . 1 Misdirections 3 | . . . . . . . . . . . 3 . . . . . . . . . . . . . . . . Weapon Failures 8 | . . . . . . . . . . . . 1 . . . . . . . 1 . . . . . . 6 Overload Shots 4 | . . . . . . . . . . . . . . . . . . . . . . . . . 1 . 3 Overflow Damage 4468 | . . 7 . . 91 92 34 106 . . 446 . 52 123 57 165 51 199 56 120 10 26 478 211 304 38 1802 Projectiles 240 | . . . . . . . . . . . . . . . . . . 4 . 11 . . . . 37 . 188 Explosions 173 | . . 7 . . . . 34 . . . . . 2 . 57 15 . . . 22 10 26 . . . . . Melee 4055 | . . . . . 91 92 . 106 . . 446 . 50 123 . 150 51 195 56 87 . . 478 211 267 38 1614 Knockbacks 7 | . . . . . . . . . . . . . . . . . . . . . . . . . . . 7 Impact . | . . . . . . . . . . . . . . . . . . . . . . . . . . . . Kinetic 7 | . . . . . . . . . . . . . . . . . . . . . . . . . . . 7 Secondary . | . . . . . . . . . . . . . . . . . . . . . . . . . . . . Self-Inflicted Damage 105 | . . . 26 . . . . . . 6 . . 15 . 2 19 . . . . . . . . . . 37 Shots 8 | . . . 3 . . . . . . 1 . . 1 . 1 1 . . . . . . . . . . 1 Rammed 3 | 1 1 1 . . . . . . . . . . . . . . . . . . . . . . . . . Targets Rammed 5 | 1 2 1 . . . . . . . . 1 . . . . . . . . . . . . . . . . Kicked 1 | . . . . . . . . . . . 1 . . . . . . . . . . . . . . . . Crushed 1 | . 1 . . . . . . . . . . . . . . . . . . . . . . . . . . Highest Temperature 664 | 60 106 40 . . 229 250 28 . . . 281 664 191 101 194 . . 217 . 108 34 138 120 72 248 139 207 Average Temperature 78 | 27 30 20 . . 72 58 21 . . . 113 219 92 60 81 . . 70 . 47 21 68 43 38 98 96 92 Received Heat Transfer 1588 | . 141 . 93 . 278 353 9 . . . 117 . 27 . . . . 36 . . 45 . 84 . 32 25 348 Effects 5 | . . . . . . . . . . . . 5 . . . . . . . . . . . . . . . Energy Bleed 1 | . . . . . . . . . . . . 1 . . . . . . . . . . . . . . . Interference 4 | . . . . . . . . . . . . 4 . . . . . . . . . . . . . . . Siege Activations . | . . . . . . . . . . . . . . . . . . . . . . . . . . . . Martial Activations . | . . . . . . . . . . . . . . . . . . . . . . . . . . . . Shielding Activations . | . . . . . . . . . . . . . . . . . . . . . . . . . . . . Robots Disrupted 3 | . . . . . . . . . . . . . . . . . . . . 1 . . . . . . 2 Combat Hostiles 3 | . . . . . . . . . . . . . . . . . . . . 1 . . . . . . 2 Robots Corrupted . | . . . . . . . . . . . . . . . . . . . . . . . . . . . . Combat Hostiles . | . . . . . . . . . . . . . . . . . . . . . . . . . . . . Parts Fried 1 | . . . . . . . . . . . . . . . . . . . . . . . . . . . 1 Impact Corruptions . | . . . . . . . . . . . . . . . . . . . . . . . . . . . . Robots Melted 1 | . . . . . . 1 . . . . . . . . . . . . . . . . . . . . . Combat Hostiles 1 | . . . . . . 1 . . . . . . . . . . . . . . . . . . . . . Parts Melted 4 | . . . . . . 4 . . . . . . . . . . . . . . . . . . . . . Heat Transferred 1787 | 400 700 175 75 . . 350 . . . . . . . . . . . 37 . . . . . . 50 . . Parts Sabotaged . | . . . . . . . . . . . . . . . . . . . . . . . . . . . . Parts Stolen . | . . . . . . . . . . . . . . . . . . . . . . . . . . . . Parts Stripped 33 | . . . . . . . . . . . . . . . . . . 7 . . . . 7 . . . 19 Power Chain Reactions . | . . . . . . . . . . . . . . . . . . . . . . . . . . . . Alert | -11 -10 -10 -10 -8 -6 -6 -6 -6 -5 -5 -5 -5 -5 -5 -4 -4 -4 -4 -4 -4 -4 -3 -3 -3 -2 -2 -2 ------- Run | Yrd Mat Min Sub Scr Fac Ext Cet Arc Fac Was Fac Upp Upp Zhi Pro Fac Was Fac Upp Upp War Pro Res Tes Res Qua Frg Maximum Alert Level 5 | . . . . . . 1 1 2 . . 1 . . . . 1 . 1 . . . . . . 1 1 5 Low Security (%) 68 | 100 100 100 . . 100 65 . 75 100 100 63 . . . . 22 100 94 . . . . 100 100 26 72 30 Level 1 17 | . . . . . . 34 100 23 . . 36 . . . . 77 . 5 . . . . . . 73 27 3 Level 2 5 | . . . . . . . . . . . . . . . . . . . . . . . . . . . 28 Level 3 3 | . . . . . . . . . . . . . . . . . . . . . . . . . . . 16 Level 4 2 | . . . . . . . . . . . . . . . . . . . . . . . . . . . 12 Level 5 1 | . . . . . . . . . . . . . . . . . . . . . . . . . . . 8 High Security . | . . . . . . . . . . . . . . . . . . . . . . . . . . . . Max Security . | . . . . . . . . . . . . . . . . . . . . . . . . . . . . Peak Influence 1955 | 10 70 91 . . 50 380 377 397 171 74 351 . . . . 300 71 214 . . . . 119 113 302 234 1955 Initial 300 | . . 13 . . . . 208 120 47 52 . . . . . 300 71 . . . . . . 64 58 148 113 Average 215 | 1 21 16 . . 13 118 290 193 74 27 142 . . . . 204 12 105 . . . . 21 39 224 160 681 Influence Increases 10526 | 40 287 128 274 . 413 983 370 327 324 256 1082 . 120 15 10 575 . 766 . 110 227 20 334 297 450 304 2814 Destroy 0b10 Robot/C 4340 | . 200 100 120 . 240 520 160 140 180 . 280 . 100 . . 120 . 340 . 100 140 . 120 60 160 100 1160 Destroy 0b10 Robot/NC 550 | 40 20 . . . 30 40 10 10 5 . 45 . 5 15 10 15 . 40 . . . 5 55 15 50 . 140 Destroy Leader 700 | . 48 20 . . 80 64 . . 20 . 62 . . . . 20 . 64 . 10 . . 12 12 54 30 204 Allied During Kill 842 | . . . 4 . . 303 119 148 77 . . . . . . . . 171 . . 12 . 2 . . . 6 Trap Triggered on 0b10 10 | . . . . . . . . . . . 10 . . . . . . . . . . . . . . . . Successful Hack 426 | . 19 . . . 12 28 . . 3 . 38 . . . . 16 . 28 . . . . 20 62 30 75 95 Disable Machine 465 | . . . . . 15 . . 15 15 . 45 . . . . 60 . 45 . . . . . 60 15 15 180 Destroy Structure 1063 | . . 8 . . 6 28 81 14 24 256 92 . . . . 44 . 48 . . . . 80 28 96 24 234 Advance Influence 300 | . . . . . . . . . . . . . . . . 300 . . . . . . . . . . . Partial Spotted 90 | . . . . . . . . . . . 45 . . . . . . . . . . . . . 15 . 30 Lose Combat Pursuer 1740 | . . . 150 . 30 . . . . . 465 . 15 . . . . 30 . . 75 15 45 60 30 60 765 Influence Decreases 8588 | 40 251 164 173 101 413 611 440 492 310 407 758 311 113 35 10 370 205 628 132 116 210 37 219 307 291 366 1078 Entered New Map 1312 | . . 23 . 101 . . 164 182 90 99 . 121 4 20 . . 134 . 52 2 . 17 . 51 47 116 89 Time Decay 5376 | 40 251 130 144 . 304 373 206 110 170 252 478 180 69 15 10 270 71 288 80 114 193 20 199 246 214 230 719 Search Patrol Dispatched 200 | . . . . . . . . . . . 100 . . . . 100 . . . . . . . . . . . Lost Part 766 | . . 11 20 . 75 70 10 80 10 . 120 10 40 . . . . 20 . . . . 20 10 . 20 250 Lost Ally 790 | . . . 9 . . 168 60 120 40 56 60 . . . . . . 210 . . 17 . . . 30 . 20 Purge Threat 144 | . . . . . 34 . . . . . . . . . . . . 110 . . . . . . . . . Squads Dispatched 83 | . 1 . . . 5 4 . . 1 . 17 . 1 . . 8 . 16 . . . . 9 2 4 2 13 Investigation 32 | . . . . . 2 1 . . 1 . 3 . . . . 4 . 7 . . . . 4 . 3 . 7 Extermination 18 | . . . . . 2 . . . . . 7 . . . . 2 . 3 . . . . . 1 1 1 1 Reinforcement 26 | . 1 . . . 1 3 . . . . 4 . . . . 2 . 3 . . . . 5 1 . 1 5 Assault 1 | . . . . . . . . . . . . . 1 . . . . . . . . . . . . . . Garrison 6 | . . . . . . . . . . . 3 . . . . . . 3 . . . . . . . . . Intercept . | . . . . . . . . . . . . . . . . . . . . . . . . . . . . Searches Triggered 2 | . . . . . . . . . . . 1 . . . . 1 . . . . . . . . . . . Unchained Authorized 1 | . . . . . . . . . . . . . . . . . . . . . . . . . . 1 . Construction Impeded 3 | . . . . . . 2 . . . . . . . . . . . 1 . . . . . . . . . Haulers Reinforced 2 | . . . . . . . . . . . 1 . . . . . . . . . . . 1 . . . . Active Scanning Responses . | . . . . . . . . . . . . . . . . . . . . . . . . . . . . Cargo Convoy Interrupts . | . . . . . . . . . . . . . . . . . . . . . . . . . . . . Stealth | -11 -10 -10 -10 -8 -6 -6 -6 -6 -5 -5 -5 -5 -5 -5 -4 -4 -4 -4 -4 -4 -4 -3 -3 -3 -2 -2 -2 --------- Run | Yrd Mat Min Sub Scr Fac Ext Cet Arc Fac Was Fac Upp Upp Zhi Pro Fac Was Fac Upp Upp War Pro Res Tes Res Qua Frg Distress Signals 32 | . . . . . 2 3 . . . . 3 . . . . . . 4 . . . . 13 . 2 1 4 Communications Jammed 52 | . . . . . . . . . . . . . . . . . . 17 . . . 1 12 . 9 13 . Distress Signals 51 | . . . . . . . . . . . . . . . . . . 17 . . . . 12 . 9 13 . Times Spotted 549 | . 18 6 16 . 24 27 7 26 9 6 53 . 5 . 2 14 . 13 . 6 45 2 14 9 10 10 227 Peak Tracking Total 16 | . 4 3 4 . 4 5 5 16 5 3 7 . 7 . 2 5 . 5 . 4 11 1 3 4 3 4 15 Tactical Retreats 62 | . . . 2 . 2 . . . . . 14 . 1 . . . . 2 . . 4 1 2 2 1 2 29 Traps | -11 -10 -10 -10 -8 -6 -6 -6 -6 -5 -5 -5 -5 -5 -5 -4 -4 -4 -4 -4 -4 -4 -3 -3 -3 -2 -2 -2 ------- Run | Yrd Mat Min Sub Scr Fac Ext Cet Arc Fac Was Fac Upp Upp Zhi Pro Fac Was Fac Upp Upp War Pro Res Tes Res Qua Frg Traps Triggered 21 | . . . . . 2 1 . . 1 . 2 2 . . . 2 . 3 . . . . 2 2 1 . 3 Indirectly . | . . . . . . . . . . . . . . . . . . . . . . . . . . . . Trap Hack Attempts . | . . . . . . . . . . . . . . . . . . . . . . . . . . . . Triggered . | . . . . . . . . . . . . . . . . . . . . . . . . . . . . Disarmed . | . . . . . . . . . . . . . . . . . . . . . . . . . . . . Reprogrammed 4 | . . . . . . . . . . . 4 . . . . . . . . . . . . . . . . Reused 1 | . . . . . . . . . . . 1 . . . . . . . . . . . . . . . . Traps Extracted . | . . . . . . . . . . . . . . . . . . . . . . . . . . . . Installed . | . . . . . . . . . . . . . . . . . . . . . . . . . . . . Triggered 1 | . . . . . . . . . . . 1 . . . . . . . . . . . . . . . . Machines | -11 -10 -10 -10 -8 -6 -6 -6 -6 -5 -5 -5 -5 -5 -5 -4 -4 -4 -4 -4 -4 -4 -3 -3 -3 -2 -2 -2 ---------- Run | Yrd Mat Min Sub Scr Fac Ext Cet Arc Fac Was Fac Upp Upp Zhi Pro Fac Was Fac Upp Upp War Pro Res Tes Res Qua Frg Machines Disabled 40 | . . . 4 . 1 1 . 1 1 . 3 1 . . . 4 . 3 . . 2 . . 4 1 1 13 Max in Single Turn 5 | . . . 2 . 1 . . . . . 1 1 . . . 2 . 1 . . 1 . . 1 . 1 5 Garrison Access 9 | . . . . . . . . . 1 . 1 . . . . 1 . . . . . . 1 . 3 1 1 Machines Repaired . | . . . . . . . . . . . . . . . . . . . . . . . . . . . . Machines Dismantled . | . . . . . . . . . . . . . . . . . . . . . . . . . . . . Machines Sabotaged . | . . . . . . . . . . . . . . . . . . . . . . . . . . . . Overloaded Fab Kills . | . . . . . . . . . . . . . . . . . . . . . . . . . . . . Hacking | -11 -10 -10 -10 -8 -6 -6 -6 -6 -5 -5 -5 -5 -5 -5 -4 -4 -4 -4 -4 -4 -4 -3 -3 -3 -2 -2 -2 --------- Run | Yrd Mat Min Sub Scr Fac Ext Cet Arc Fac Was Fac Upp Upp Zhi Pro Fac Was Fac Upp Upp War Pro Res Tes Res Qua Frg Machines Accessed 140 | . 6 . . 3 7 12 1 . 3 . 18 . 1 4 . 7 . 19 . 1 4 . 10 8 9 7 20 Terminals 64 | . 6 . . . 2 12 1 . 1 . 7 . . . . 1 . 9 . . . . 4 5 2 5 9 Fabricators 16 | . . . . . 2 . . . . . 4 . . . . 1 . 3 . . . . 1 . 1 . 4 Repair Stations 7 | . . . . . . . . . . . 3 . . . . . . . . . . . . 1 1 1 1 Recycling Units 22 | . . . . . 2 . . . 1 . 1 . . . . 4 . 6 . . . . 3 . 2 . 3 Scanalyzers 7 | . . . . . . . . . . . 1 . . . . . . 1 . . . . 1 2 . . 2 Garrison Access 11 | . . . . . 1 . . . 1 . 2 . . . . 1 . . . . . . 1 . 3 1 1 Total Hacks 375 | . 19 . . 19 13 26 3 . 7 . 51 . 1 17 . 18 . 56 . 1 13 . 22 24 14 14 57 Successful 220 | . 8 . . 19 7 14 1 . 3 . 20 . 1 17 . 9 . 34 . 1 13 . 9 14 11 8 31 Failed 154 | . 11 . . . 6 12 2 . 4 . 30 . . . . 9 . 22 . . . . 13 10 3 6 26 Catastrophic 28 | . 2 . . . . 3 . . 1 . 10 . . . . . . 4 . . . . 2 . . 2 4 Database Lockouts 1 | . . . . . . . . . . . 1 . . . . . . . . . . . . . . . . Manual 152 | . 19 . . . 7 10 1 . 5 . 20 . . . . 14 . 25 . . . . 12 10 6 4 19 Terminals 181 | . 19 . . . 6 26 3 . 4 . 20 . . . . 2 . 30 . . . . 5 16 4 10 36 Fabricators 50 | . . . . . 2 . . . . . 13 . . . . 6 . 12 . . . . 4 . 2 . 11 Repair Stations 15 | . . . . . . . . . . . 6 . . . . . . . . . . . . 2 2 3 2 Recycling Units 36 | . . . . . 3 . . . 1 . 2 . . . . 9 . 8 . . . . 7 . 2 . 4 Scanalyzers 24 | . . . . . . . . . . . 4 . . . . . . 6 . . . . 5 6 . . 3 Garrison Access 18 | . . . . . 2 . . . 2 . 6 . . . . 1 . . . . . . 1 . 4 1 1 Terminal Hacks 113 | . 3 . . 19 2 12 1 . . . 5 . 1 17 . 1 . 11 . 1 13 . 1 4 1 4 17 Record 34 | . . . . 17 . 1 . . . . . . . 5 . 1 . 1 . . 8 . . . . . 1 Part Schematic 5 | . 1 . . . . . . . . . . . . 4 . . . . . . . . . . . . . Robot Analysis 6 | . 2 . . . . . . . . . . . . 4 . . . . . . . . . . . . . Prototype ID Bank 13 | . . . . . . . . . . . . . . 4 . . . . . . 4 . . 1 . 1 3 Open Door 13 | . . . . 1 1 7 1 . . . . . 1 . . . . . . 1 1 . . . . . . Level Access Points 1 | . . . . . . . . . . . . . . . . . . . . . . . . 1 . . . Branch Access Points 3 | . . . . . . . . . . . 1 . . . . . . 1 . . . . . . . 1 . Emergency Access Points 1 | . . . . . . . . . . . . . . . . . . . . . . . . . . . 1 Terminal Index 1 | . . . . . . . . . . . . . . . . . . 1 . . . . . . . . . Recycling Unit Index 1 | . . . . . . . . . . . . . . . . . . . . . . . . . . . 1 Scanalyzer Index 1 | . . . . . . . . . . . . . . . . . . 1 . . . . . . . . . Alert Level 3 | . . . . . . . . . . . 1 . . . . . . . . . . . . . . . 2 Unreport Threat 3 | . . . . . 1 1 . . . . . . . . . . . 1 . . . . . . . . . Locate Traps 1 | . . . . . . 1 . . . . . . . . . . . . . . . . . . . . . Reprogram Traps 1 | . . . . . . . . . . . 1 . . . . . . . . . . . . . . . . Dispatch Records 1 | . . . . . . . . . . . . . . . . . . . . . . . . 1 . . . Patrol Status 1 | . . . . . . . . . . . . . . . . . . . . . . . . . . . 1 Transport Status 1 | . . . . . . . . . . . . . . . . . . . . . . . . . . . 1 Recall Investigation 2 | . . . . . . . . . . . . . . . . . . 1 . . . . . . . . 1 Recall Reinforcements 2 | . . . . . . . . . . . . . . . . . . 2 . . . . . . . . . Hauler Manifests 7 | . . . . . . 1 . . . . 2 . . . . . . 1 . . . . . 1 1 1 . Registered Components 1 | . . . . . . . . . . . . . . . . . . . . . . . . . . . 1 Registered Prototypes 1 | . . . . . . . . . . . . . . . . . . . . . . . . . . . 1 Zone Layout 9 | . . . . . . 1 . . . . . . . . . . . 2 . . . . 1 . . 1 4 Proto ID Catalog 1 | . . . . 1 . . . . . . . . . . . . . . . . . . . . . . . Fabricator Hacks 22 | . . . . . 2 . . . . . 5 . . . . 2 . 6 . . . . 1 . 1 . 5 Network Status 2 | . . . . . 1 . . . . . 1 . . . . . . . . . . . . . . . . Load Schematic 13 | . . . . . . . . . . . 3 . . . . 1 . 4 . . . . 1 . 1 . 3 Build 7 | . . . . . 1 . . . . . 1 . . . . 1 . 2 . . . . . . . . 2 Repair Station Hacks 8 | . . . . . . . . . . . 3 . . . . . . . . . . . . 1 1 1 2 Scan Component 7 | . . . . . . . . . . . 3 . . . . . . . . . . . . 1 1 1 1 Repair 1 | . . . . . . . . . . . . . . . . . . . . . . . . . . . 1 Recycling Unit Hacks 2 | . . . . . . . . . . . . . . . . . . 2 . . . . . . . . . Retrieve Components 2 | . . . . . . . . . . . . . . . . . . 2 . . . . . . . . . Scanalyzer 17 | . . . . . . . . . . . 3 . . . . . . 5 . . . . 3 5 . . 1 Insert Component 5 | . . . . . . . . . . . 1 . . . . . . 2 . . . . 2 . . . . Analyze 3 | . . . . . . . . . . . 1 . . . . . . 1 . . . . 1 . . . . Retrieve Study 9 | . . . . . . . . . . . 1 . . . . . . 2 . . . . . 5 . . 1 Garrison Access Hacks 9 | . . . . . . . . . 1 . 1 . . . . 1 . . . . . . 1 . 3 1 1 Seal Access 9 | . . . . . . . . . 1 . 1 . . . . 1 . . . . . . 1 . 3 1 1 Unauthorized Hacks 49 | . 5 . . . 3 2 . . 2 . 3 . . . . 5 . 10 . . . . 3 4 5 2 5 Terminals 22 | . 5 . . . 1 2 . . 1 . . . . . . . . 3 . . . . . 4 2 2 2 Assimilate 1 | . . . . . . . . . . . . . . . . . . . . . . . . . 1 . . Botnet 14 | . 1 . . . 1 2 . . 1 . . . . . . . . 3 . . . . . 1 1 2 2 Operators 1 | . . . . . . . . . . . . . . . . . . . . . . . . 1 . . . Skim 6 | . 4 . . . . . . . . . . . . . . . . . . . . . . 2 . . . Fabricators 7 | . . . . . . . . . . . 3 . . . . 1 . 2 . . . . . . 1 . . Prioritize 2 | . . . . . . . . . . . . . . . . 1 . 1 . . . . . . . . . Liberate 1 | . . . . . . . . . . . 1 . . . . . . . . . . . . . . . . Recompile 4 | . . . . . . . . . . . 2 . . . . . . 1 . . . . . . 1 . . Repair Stations . | . . . . . . . . . . . . . . . . . . . . . . . . . . . . Recycling Units 20 | . . . . . 2 . . . 1 . . . . . . 4 . 5 . . . . 3 . 2 . 3 Fedlink 18 | . . . . . 1 . . . . . . . . . . 4 . 5 . . . . 3 . 2 . 3 Scrapoids 2 | . . . . . 1 . . . 1 . . . . . . . . . . . . . . . . . . Scanalyzers . | . . . . . . . . . . . . . . . . . . . . . . . . . . . . Garrison Access . | . . . . . . . . . . . . . . . . . . . . . . . . . . . . Data Cores Recovered 3 | . . . . . . 1 . . . . 1 . . . . . . . . . . . . . . . 1 Used 2 | . . . . . . . . . . . 1 . . . . . . . . . . . . . . . 1 Hacking Detections 87 | . 6 . . . 2 8 1 . 1 . 16 . . . . 3 . 12 . . . . 7 6 3 6 16 Full Trace Events 5 | . . . . . . . . . . . 1 . . . . . . 1 . . . . 1 . . . 2 Feedback Events . | . . . . . . . . . . . . . . . . . . . . . . . . . . . . Feedback Blocked . | . . . . . . . . . . . . . . . . . . . . . . . . . . . . Robot Schematics Acquired . | . . . . . . . . . . . . . . . . . . . . . . . . . . . . Robots Built . | . . . . . . . . . . . . . . . . . . . . . . . . . . . . Authchips . | . . . . . . . . . . . . . . . . . . . . . . . . . . . . Time . | . . . . . . . . . . . . . . . . . . . . . . . . . . . . Total Robot Build Rating . | . . . . . . . . . . . . . . . . . . . . . . . . . . . . Part Schematics Acquired 10 | . 1 . . . . . . . . . 1 . . 4 . . . 1 . . . . 1 . . . 2 Parts Built 9 | . . . . . 1 . . . . . 2 . . . . 2 . 1 . . . . . . . . 3 Authchips 4 | . . . . . . . . . . . 1 . . . . 1 . 1 . . . . . . . . 1 Time 513 | . . . . . 95 . . . . . 69 . . . . 69 . 166 . . . . . . . . 114 Total Part Build Rating 76 | . . . . . 5 . . . . . 18 . . . . 18 . 9 . . . . . . . . 26 Part Studies Acquired 6 | . . . . . . . . . . . . . . . . . . 1 . . . . . 4 . . 1 Parts Repaired 1 | . . . . . . . . . . . . . . . . . . . . . . . . . . . 1 Time 39 | . . . . . . . . . . . . . . . . . . . . . . . . . . . 39 Parts Recycled . | . . . . . . . . . . . . . . . . . . . . . . . . . . . . Recycled Matter . | . . . . . . . . . . . . . . . . . . . . . . . . . . . . Retrieved Matter . | . . . . . . . . . . . . . . . . . . . . . . . . . . . . Retrieved Components 2 | . . . . . . . . . . . . . . . . . . 2 . . . . . . . . . Parts Scanalyzed 3 | . . . . . . . . . . . 1 . . . . . . 1 . . . . 1 . . . . Part Schematics Acquired 3 | . . . . . . . . . . . 1 . . . . . . 1 . . . . 1 . . . . Parts Damaged 2 | . . . . . . . . . . . . . . . . . . 1 . . . . 1 . . . . Bothacking | -11 -10 -10 -10 -8 -6 -6 -6 -6 -5 -5 -5 -5 -5 -5 -4 -4 -4 -4 -4 -4 -4 -3 -3 -3 -2 -2 -2 ------------ Run | Yrd Mat Min Sub Scr Fac Ext Cet Arc Fac Was Fac Upp Upp Zhi Pro Fac Was Fac Upp Upp War Pro Res Tes Res Qua Frg Used RIF Installer . | . . . . . . . . . . . . . . . . . . . . . . . . . . . . Robots Hacked 5 | . . . . . . . . . . . . . . . . 1 . . . . 1 . 1 . 1 1 . Non-combat 1 | . . . . . . . . . . . . . . . . 1 . . . . . . . . . . . Combat 1 | . . . . . . . . . . . . . . . . . . . . . 1 . . . . . . Robot Hacks Applied 2 | . . . . . . . . . . . . . . . . 1 . . . . 1 . . . . . . parse_system 1 | . . . . . . . . . . . . . . . . . . . . . 1 . . . . . . find_chute 1 | . . . . . . . . . . . . . . . . 1 . . . . . . . . . . . Manual 3 | . . . . . . . . . . . . . . . . . . . . . . . 1 . 1 1 . Relay Couplers Released . | . . . . . . . . . . . . . . . . . . . . . . . . . . . . Fabnet Peak Effective % . | . . . . . . . . . . . . . . . . . . . . . . . . . . . . Robots Rewired 8 | . . . . . . 6 . . . . . . . . . . . . . 1 . . . . . . 1 Allies Hacked 2 | . . . . . . . . . . . . . . . . . . 1 . . 1 . . . . . . Hacks Repelled 1 | . . . . . . . . . . . . . . . . . . . . . 1 . . . . . . Allies | -11 -10 -10 -10 -8 -6 -6 -6 -6 -5 -5 -5 -5 -5 -5 -4 -4 -4 -4 -4 -4 -4 -3 -3 -3 -2 -2 -2 -------- Run | Yrd Mat Min Sub Scr Fac Ext Cet Arc Fac Was Fac Upp Upp Zhi Pro Fac Was Fac Upp Upp War Pro Res Tes Res Qua Frg Total Allies 63 | . . 2 . . 5 17 5 . 5 1 3 . . . . . 20 . . 1 . . 1 . 2 . 1 Largest Group 20 | . . 2 2 . 5 12 9 6 5 2 3 . . . . . 20 18 . 1 1 . 1 . 1 . 1 Highest-Rated Group 777 | . . 45 45 . 143 371 705 432 235 94 87 . . . . . 777 700 . 47 47 . 116 . 148 . 119 Highest-Rated Ally 159 | . . 31 31 . 31 159 159 96 47 47 29 . . . . . 50 46 . 47 47 . 116 . 148 . 119 Total Orders 1 | . . . . . 1 . . . . . . . . . . . . . . . . . . . . . . EXPLORE 1 | . . . . . 1 . . . . . . . . . . . . . . . . . . . . . . Ally Attacks 588 | . . . 12 . 20 183 48 38 56 50 19 . . . . . 11 85 . . 7 . 8 . 47 . 4 Total Damage 13604 | . . . 150 . 212 3130 1362 1791 1034 1222 245 . . . . . 284 1939 . . 187 . 648 . 1162 . 238 Kills 81 | . . . 2 . 1 23 8 7 8 2 . . . . . . 1 14 . . 3 . 3 . 7 . 2 Allies Corrupted 2 | . . . . . . . . . . . . . . . . . . 2 . . . . . . . . . Allies Melted 8 | . . . . . . . . 2 . . . . . . . . . 1 . . . . . . . . 5 Intel | -11 -10 -10 -10 -8 -6 -6 -6 -6 -5 -5 -5 -5 -5 -5 -4 -4 -4 -4 -4 -4 -4 -3 -3 -3 -2 -2 -2 ------- Run | Yrd Mat Min Sub Scr Fac Ext Cet Arc Fac Was Fac Upp Upp Zhi Pro Fac Was Fac Upp Upp War Pro Res Tes Res Qua Frg Active Infowar (turns) 19279 | 72 1100 664 1323 1580 1166 1202 . 4 346 876 2054 376 277 111 459 597 439 810 165 386 608 325 708 553 446 481 2151 Optics 7061 | . . . . . . . . . . . . . . . . 154 439 810 165 386 443 325 708 553 446 481 2151 Sensors 8280 | . . . . . 259 1202 . 4 346 876 2011 376 277 111 459 566 439 762 165 338 89 . . . . . . Terrain 2697 | . . . . . . . . . . . . . . . . . . . . . . . 656 490 387 481 683 Structural 2148 | . . . . . 742 . . . 20 876 510 . . . . . . . . . . . . . . . . Seismic 5487 | 72 1100 664 1323 1580 748 . . . . . . . . . . . . . . . . . . . . . . Cloaking 411 | . . . . . . . . . . . 411 . . . . . . . . . . . . . . . . Jamming 6255 | . . . . . . . . . . . . . . . . 595 426 806 165 336 605 316 703 553 446 481 823 Robot Analysis Total 6 | . 2 . . . . . . . . . . . . 4 . . . . . . . . . . . . . Derelict Logs Recovered 10 | . . 1 2 4 . . . . . . . 1 . . 1 . . . 1 . . . . . . . . Drone Launches 1 | . . . . . 1 . . . . . . . . . . . . . . . . . . . . . . Drone Recoveries . | . . . . . . . . . . . . . . . . . . . . . . . . . . . . Exploration | -11 -10 -10 -10 -8 -6 -6 -6 -6 -5 -5 -5 -5 -5 -5 -4 -4 -4 -4 -4 -4 -4 -3 -3 -3 -2 -2 -2 ------------- Run | Yrd Mat Min Sub Scr Fac Ext Cet Arc Fac Was Fac Upp Upp Zhi Pro Fac Was Fac Upp Upp War Pro Res Tes Res Qua Frg Turns Passed 23959 | 248 1100 708 1323 3113 1195 1296 438 220 346 876 2420 376 316 114 459 597 439 810 165 386 1125 325 708 553 446 481 3376 Spaces Moved 24359 | 92 587 420 848 2234 632 839 199 157 270 647 2994 554 500 151 317 827 513 1252 313 525 1424 522 928 668 564 427 4955 Core 522 | 6 . . . 516 . . . . . . . . . . . . . . . . . . . . . . . Treads 2524 | 86 587 420 421 1009 . . . . . . . . . . . . . . . . . . . . . . 1 Legs 3900 | . . . . 709 632 839 199 157 270 647 447 . . . . . . . . . . . . . . . . Wheels 660 | . . . 427 . . . . . . . . . . . . . . . . . . . . . . . 233 Hover 16753 | . . . . . . . . . . . 2547 554 500 151 317 827 513 1252 313 525 1424 522 928 668 564 427 4721 Flight . | . . . . . . . . . . . . . . . . . . . . . . . . . . . . Fastest Speed 35 | 50 160 160 110 50 120 120 120 120 120 120 48 54 54 56 56 51 47 51 51 51 45 51 51 49 52 42 35 Average Speed 75 | 152 160 160 139 134 125 120 120 127 120 120 61 54 54 56 56 51 49 51 51 51 51 51 51 52 58 80 46 Slowest Speed 192 | 160 160 160 160 190 192 120 120 190 120 120 190 59 60 56 56 51 51 56 51 51 141 141 51 131 131 131 180 Overloaded Moves 78 | . . . . . . . . . . . . . . . . . . . . . . . . . . 9 69 Propulsion Burnouts 1 | . . . . . . . . . . . . . . . . . . . . . . . . . . . 1 Robots Hopped 3 | . . . . . . . . . . . . . . . . . . 3 . . . . . . . . . Potential Cave-ins 3 | . . . . . . . . . . . . . . . . . . . . . . . . . . . 3 Cave-ins Triggered . | . . . . . . . . . . . . . . . . . . . . . . . . . . . . Exploration Rate (%) 61 | 6 95 92 49 91 12 88 74 98 10 99 62 63 72 60 55 22 96 43 60 66 90 62 42 79 22 54 67 Regions Visited 27 Branch Regions 17 Pre-discovered Areas 10 | . . 1 1 3 . . . . . . . . . 3 . 1 . . 1 . . . . . . . . Known Exits Taken 18 | . . . . . 1 1 1 1 . . 1 1 1 1 1 . . 1 1 1 1 1 1 1 1 1 . Unknown Exits Taken 5 | 1 1 1 1 1 . . . . . . . . . . . . . . . . . . . . . . . Scrap Searched 22 | . . 1 . 8 . . . . . . . 3 1 . 2 . . . 2 2 . 3 . . . . . Spaces Dug 367 | . . . 7 . 6 . . . 2 14 46 6 17 . 14 14 . 24 1 38 33 13 33 16 12 7 64 Terrain Destroyed 993 | . . 9 32 . 6 1 178 . 2 293 46 6 72 . 14 21 . 24 1 39 66 22 33 16 12 8 92 Melee 168 | . . . . . 6 . . . 2 . 46 6 5 . . 14 . 22 1 3 1 2 20 12 11 6 11 Projectile 67 | . . . . . . 1 1 . . . . . . . . . . 2 . 5 . 12 13 4 1 2 26 AOE 758 | . . 9 32 . . . 177 . . 293 . . 67 . 14 7 . . . 31 65 8 . . . . 55 Terrain Rammed . | . . . . . . . . . . . . . . . . . . . . . . . . . . . . Walls Destroyed . | . . . . . . . . . . . . . . . . . . . . . . . . . . . . Machines Disabled . | . . . . . . . . . . . . . . . . . . . . . . . . . . . . Actions | -11 -10 -10 -10 -8 -6 -6 -6 -6 -5 -5 -5 -5 -5 -5 -4 -4 -4 -4 -4 -4 -4 -3 -3 -3 -2 -2 -2 --------- Run | Yrd Mat Min Sub Scr Fac Ext Cet Arc Fac Was Fac Upp Upp Zhi Pro Fac Was Fac Upp Upp War Pro Res Tes Res Qua Frg Total 28461 | 155 669 436 913 2342 913 1049 371 173 286 710 3383 615 523 171 595 957 697 1360 314 619 1798 559 1082 828 642 519 5782 Wait 2124 | 26 22 1 3 43 150 49 111 . 3 11 154 48 3 . 275 61 148 33 . 60 329 17 58 66 42 43 368 Move 24330 | 91 586 419 847 2233 631 838 198 156 270 646 2993 553 499 150 316 827 512 1247 312 524 1423 521 927 667 563 426 4955 Hop 1 | . . . . . . . . . . . . . . . . . . 1 . . . . . . . . . Pick Up 171 | 7 7 . 5 25 15 13 5 1 6 7 17 . . 2 . 7 3 10 . 2 3 . 4 6 1 4 21 Fast Attach 178 | 7 . . 4 10 9 9 9 3 1 1 15 1 1 3 . 6 11 4 . . 8 . 4 25 . . 47 Attach 107 | . . 2 2 2 16 11 5 6 2 1 12 1 4 3 1 6 . 3 . . . . 5 . 2 5 18 Detach 59 | . . . 3 1 1 4 6 . . . 10 1 1 5 1 3 . . . . 1 . 1 1 . . 20 Swap 160 | 1 1 2 9 1 6 14 2 2 . 3 29 . 1 . . 10 3 7 . 16 10 6 6 2 7 5 17 Drop 214 | . 5 . 5 27 2 19 11 3 . 8 16 . . 1 . 7 14 10 . 2 11 . 5 26 . 3 39 Fire 378 | 22 46 11 35 . 8 9 14 . . 33 1 4 8 . 1 4 . 3 . 8 9 13 15 4 3 3 124 Melee 637 | . . . . . 75 53 10 2 4 . 135 7 6 7 1 26 3 42 2 6 4 2 49 31 24 30 118 Ram . | . . . . . . . . . . . . . . . . . . . . . . . . . . . . Kick 1 | . . . . . . . . . . . 1 . . . . . . . . . . . . . . . . Crush 4 | 1 2 1 . . . . . . . . . . . . . . . . . . . . . . . . . Escape Stasis 13 | . . . . . . 2 . . . . . . . . . . . . . . . . 8 . . . 3 Rewire 34 | . . . . . . 28 . . . . . . . . . . 3 . . 1 . . . . . . 2 Trap . | . . . . . . . . . . . . . . . . . . . . . . . . . . . . Miscellaneous 50 | . . . . . . . . . . . . . . . . . . . . . . . . . . . 50 Route ------- -11/Scrapyard -10/Materials (discovered 6 exits: [*Mat x3] / [*Min x2] / [*Sub]) -10/Mines (discovered 2 exits: [*Mat] / [*Sub]) -10/Subcaves (discovered 4 exits: [*Mat x2] / [*Rec] / *Scr) -8/Scraptown (discovered 2 exits: *Fac x2) -6/Factory (discovered 6 exits: Fac x2 / Low x2 / *Ext x2) -6/Extension (discovered 2 exits: *Fac / *Cet) -6/Cetus (discovered 2 exits: *Fac / *Arc) -6/Archives (discovered 3 exits: *Fac / [*Hub x2]) -5/Factory -5/Waste -5/Factory (discovered 3 exits: *Fac / *Upp x2) -5/Upper Caves -5/Upper Caves (discovered 2 exits: *Fac / *Zhi) -5/Zhirov -4/Proximity Caves -4/Factory (discovered 5 exits: *Res x4 / *Upp) -4/Waste -4/Factory (discovered 2 exits: *Upp x2) -4/Upper Caves -4/Upper Caves (discovered 2 exits: *Res / *War) -4/Warlord -3/Proximity Caves -3/Research (discovered 5 exits: *Res x2 / Arm / *Tes x2) -3/Testing -2/Research -2/Quarantine (discovered 3 exits: *Acc / *Sec / *Frg) -2/Protoforge (discovered 1 exit: *Acc) History --------- Turn | Location | Event 6 | -11/Scrapyard | Discovered new exit (range 14) 249 | -11/Scrapyard | Entered Materials 259 | -10/Materials | Discovered new exit (range 15) 307 | -10/Materials | Build established: Mutant 316 | -10/Materials | Discovered new exit (range 15) 446 | -10/Materials | Discovered new exit (range 16) 788 | -10/Materials | Discovered new exit (range 16) 923 | -10/Materials | Discovered new exit (range 13) 991 | -10/Materials | Discovered new exit (range 14) 1349 | -10/Materials | Entered Mines 1494 | -10/Mines | Learned location of Zion (-7) 1529 | -10/Mines | Core integrity fell below 50% 1540 | -10/Mines | Discovered new exit (range 3) 1653 | -10/Mines | Found a hidden stash of uninstalled traps 2033 | -10/Mines | Discovered new exit (range 9) 2057 | -10/Mines | Entered Subcaves 2057 | -10/Subcaves | Accompanied by 2 allies 2058 | -10/Subcaves | Approached by a straggling Scientist 2062 | -10/Subcaves | Led the pair of lost Derelicts to an unsafe place 2309 | -10/Subcaves | Discovered new exit (range 7) 2472 | -10/Subcaves | A swath of the cavern ceiling suddenly collapsed 2496 | -10/Subcaves | Shifting Twisted Machinery released Spk. Treads 2496 | -10/Subcaves | Shifting Twisted Machinery released Battle Cannon 2503 | -10/Subcaves | Scientist uncovered a shortcut to Scraptown 2683 | -10/Subcaves | Discovered new exit (range 12) 2714 | -10/Subcaves | Core integrity fell below 20% 2731 | -10/Subcaves | Build established: Scavenger-Mutant 2804 | -10/Subcaves | Learned Materials garrison access intel 3050 | -10/Subcaves | Discovered new exit (range 9) 3380 | -10/Subcaves | Entered Scraptown 3609 | -8/Scraptown | Discovered new exit (range 13) 3691 | -8/Scraptown | Scanned Subdweller tech in exchange for log data 3694 | -8/Scraptown | Learned Research stockpile data 3696 | -8/Scraptown | Learned location of 1 exit from Upper Caves 3697 | -8/Scraptown | Learned location of 1 exit from Research 3795 | -8/Scraptown | Visited IN-MT5's Study 3824 | -8/Scraptown | Visited Cyclists 3843 | -8/Scraptown | Visited Awakened 3857 | -8/Scraptown | Visited Assassins FH 3886 | -8/Scraptown | Visited Comm Corps 3926 | -8/Scraptown | Heard Great Nut preacher, LISTEN AND RECITE! 4136 | -8/Scraptown | Visited CPS Storage 4156 | -8/Scraptown | Visited Symbiants 4196 | -8/Scraptown | Visited UFD Registry 4196 | -8/Scraptown | Registered with UFD as "Wrenchwarp" 4236 | -8/Scraptown | Visited Curators Association 4283 | -8/Scraptown | Visited LU-1G1's Boring Crew 4345 | -8/Scraptown | Visited Junk Cannon Lab 4354 | -8/Scraptown | Found Prototype Special Weapon 4354 | -8/Scraptown | Identified Junk Cannon 4388 | -8/Scraptown | Visited DA-N13 Charitable Foundation 4394 | -8/Scraptown | Found DCF Scrap (28 items) 4430 | -8/Scraptown | Visited Research Penetration Think Tank 4463 | -8/Scraptown | Visited Junk Repository 4487 | -8/Scraptown | Visited Science Guys 4554 | -8/Scraptown | Visited Chapter 10 4580 | -8/Scraptown | Visited Sword Containment 4606 | -8/Scraptown | Visited Cartography Club 4637 | -8/Scraptown | Found Surveybot 17 Chip 4657 | -8/Scraptown | Learned location of Recycling (-8) 4657 | -8/Scraptown | Learned location of Upper Caves (-5) 4657 | -8/Scraptown | Learned location of Hub_04(d) (-6) 4657 | -8/Scraptown | Learned 8 Materials zone layouts 4657 | -8/Scraptown | Learned 20 Factory zone layouts 4657 | -8/Scraptown | Learned 12 Research zone layouts 4657 | -8/Scraptown | Learned 12 Proximity Caves zone layouts 4657 | -8/Scraptown | Learned 4 Armory zone layouts 4657 | -8/Scraptown | Learned Factory emergency access door positions 4657 | -8/Scraptown | Learned location of 2 exits from Factory 4657 | -8/Scraptown | Learned location of 1 exit from Upper Caves 4657 | -8/Scraptown | Learned location of 2 exits from Upper Caves 4668 | -8/Scraptown | Found Deep Structural Scanner 4919 | -8/Scraptown | Build established: Mutant 6396 | -8/Scraptown | Met Optimus 6396 | -8/Scraptown | Accepted into 0bPrime 6489 | -8/Scraptown | Discovered new exit (range 3) 6493 | -8/Scraptown | Entered Factory 6493 | -6/Factory | Evolved 8 slots: Power x1, Propulsion x2, Utility x5 6494 | -6/Factory | Identified exit to Extension 6495 | -6/Factory | Identified exit to Lower Caves 6495 | -6/Factory | Identified exit to Factory 6577 | -6/Factory | Scrapoid reinforcements arrived 6601 | -6/Factory | Loaded intel: 7 recycling unit locations 6634 | -6/Factory | Found Scrap Suit 6672 | -6/Factory | Lost 6 allies 6729 | -6/Factory | Lost 3 parts (1p1n1u) 6910 | -6/Factory | Lost 7 parts (2p3n1u1w) 7137 | -6/Factory | Build established: Scavenger-Mutant 7554 | -6/Factory | Fabricated Lrn. Missile Launcher (x1) 7688 | -6/Factory | Entered Extension 7776 | -6/Extension | Rescued a captive Derelict 7777 | -6/Extension | Rescued a captive Derelict 7911 | -6/Extension | Rescued a captive Derelict 7911 | -6/Extension | Rescued a captive Derelict 7984 | -6/Extension | Rescued a captive Derelict 7985 | -6/Extension | Rescued a captive Derelict 8002 | -6/Extension | Rescued a captive Derelict 8016 | -6/Extension | Rescued a captive Derelict 8018 | -6/Extension | Rescued a captive Derelict 8318 | -6/Extension | Spotted B-75 Beast 8343 | -6/Extension | Allies destroyed B-75 Beast 8374 | -6/Extension | Lost 4 allies 8375 | -6/Extension | Spotted B-75 Beast 8386 | -6/Extension | Destroyed B-75 Beast 8431 | -6/Extension | Core integrity fell below 50% 8598 | -6/Extension | Lost 3 allies 8725 | -6/Extension | Rescued A7 8811 | -6/Extension | Rescued a captive Derelict 8933 | -6/Extension | Discovered exit to Factory (range 10) 8935 | -6/Extension | Discovered new exit (range 6) 8959 | -6/Extension | Lost 3 parts (1p2u) 8966 | -6/Extension | Identified exit to Cetus 8984 | -6/Extension | Entered Cetus 8984 | -6/Cetus | Accompanied by 5 allies (A7) 8989 | -6/Cetus | Acquired a Cetus Manufacturing Module code from A7 9009 | -6/Cetus | Spotted Cetus Guard 9013 | -6/Cetus | Spotted Cetus Guard 9016 | -6/Cetus | Allies destroyed Cetus Guard 9017 | -6/Cetus | Spotted Cetus Guard 9022 | -6/Cetus | Attached CPS modules to 8Z-RXD(b). 9025 | -6/Cetus | Attached CPS modules to A7. 9029 | -6/Cetus | Allies destroyed Cetus Guard 9032 | -6/Cetus | Allies destroyed Cetus Guard 9080 | -6/Cetus | Started Cetus Manufacturing Module 9089 | -6/Cetus | Escorted A7 to Cetus Mainframe 9105 | -6/Cetus | Manufactured an Enhanced Grunt 9130 | -6/Cetus | Manufactured an Enhanced Grunt 9130 | -6/Cetus | Discovered new exit (range 16) 9155 | -6/Cetus | Manufactured an Enhanced Grunt 9180 | -6/Cetus | Manufactured an Enhanced Grunt 9205 | -6/Cetus | Manufactured an Enhanced Grunt 9236 | -6/Cetus | Spotted Cetus Guard 9238 | -6/Cetus | Spotted Cetus Guard 9243 | -6/Cetus | Attached CPS modules to Enhanced Grunt. 9246 | -6/Cetus | Spotted Cetus Guard 9247 | -6/Cetus | Spotted Cetus Guard 9249 | -6/Cetus | Allies destroyed Cetus Guard 9250 | -6/Cetus | Allies destroyed Cetus Guard 9256 | -6/Cetus | Allies destroyed Cetus Guard 9261 | -6/Cetus | Allies destroyed Cetus Guard 9268 | -6/Cetus | Found Prototype Device 9268 | -6/Cetus | Identified Exp. Thermal Shield 9276 | -6/Cetus | Discovered exit to Factory (range 16) 9292 | -6/Cetus | Met Revision 17 9344 | -6/Cetus | Identified exit to Archives 9375 | -6/Cetus | Murdered A7 9382 | -6/Cetus | Found Prototype Protection 9382 | -6/Cetus | Identified Med. Regenerative Plating 9404 | -6/Cetus | Extracted ID and sensor layout for unrecognized location from A7's data core 9422 | -6/Cetus | Entered Archives 9422 | -6/Archives | Accompanied by 6 allies 9438 | -6/Archives | Met Zhirov 9444 | -6/Archives | Reinforcements dispatched to Archives 9448 | -6/Archives | Unable to access archive contents 9463 | -6/Archives | Discovered new exit (range 16) 9481 | -6/Archives | Discovered exit to Factory (range 16) 9489 | -6/Archives | Reinforcements dispatched to Archives 9491 | -6/Archives | Zhirov warped through subspace 9501 | -6/Archives | Discovered new exit (range 13) 9509 | -6/Archives | Zhirov detonated Archives 9510 | -6/Archives | Core integrity fell below 20% 9535 | -6/Archives | Lost 6 allies 9540 | -6/Archives | Lost 8 parts (1p3n3u1w) 9642 | -6/Archives | Entered Factory 9642 | -5/Factory | Evolved 2 slots: Propulsion x1, Utility x1 9729 | -5/Factory | Scrapoids reinforcements arrived? 9953 | -5/Factory | Found Scrap Suit 9988 | -5/Factory | Sucked down chute 9988 | -5/Factory | Entered Waste 9989 | -5/Waste | Met a frightened Derelict 10008 | -5/Waste | Spotted C-40 Crusher 10045 | -5/Waste | Spotted C-40 Crusher 10058 | -5/Waste | Spotted C-40 Crusher 10063 | -5/Waste | 3 allies followed down the chute 10130 | -5/Waste | Spotted C-40 Crusher 10134 | -5/Waste | Spotted C-40 Crusher 10163 | -5/Waste | Destroyed C-40 Crusher 10215 | -5/Waste | Spotted C-40 Crusher 10258 | -5/Waste | Build established: Scavenger-Assassin 10282 | -5/Waste | Destroyed C-40 Crusher 10338 | -5/Waste | Destroyed C-40 Crusher 10452 | -5/Waste | Destroyed C-40 Crusher 10593 | -5/Waste | Discovered new exit (range 12) 10709 | -5/Waste | Found Adv. Force Booster 10863 | -5/Waste | Identified exit to Factory 10864 | -5/Waste | Entered Factory 11461 | -5/Factory | Garrison activated, responded to threat 11480 | -5/Factory | System corruption reached 10% 11522 | -5/Factory | Lost 3 parts (1n1u1w) 11691 | -5/Factory | Spotted B-75 Beast 11765 | -5/Factory | Build established: Mutant 11778 | -5/Factory | Discovered new exit (range 6) 11780 | -5/Factory | Identified exit to Factory 12311 | -5/Factory | Central database locked down 12353 | -5/Factory | Discovered new exit (range 14) 12360 | -5/Factory | Identified exit to Upper Caves 12559 | -5/Factory | Lost 3 parts (2n1u) 12664 | -5/Factory | Search patrols dispatched 12787 | -5/Factory | Fabricated Cmb. Linear Gravjet (x2) 13272 | -5/Factory | Build established: Hacker-Mutant 13284 | -5/Factory | Entered Upper Caves 13285 | -5/Upper Caves | Identified exit to Upper Caves 13399 | -5/Upper Caves | Learned 8 Factory zone layouts 13601 | -5/Upper Caves | Acquired the password to a Derelict Tinkerer's latest research 13660 | -5/Upper Caves | Entered another Upper Caves area 13661 | -5/Upper Caves | Identified exit to Zhirov 13843 | -5/Upper Caves | Attracted the attention of an 0b10 outpost 13894 | -5/Upper Caves | Lost 3 parts (1p1n1u) 13976 | -5/Upper Caves | Entered Zhirov 13976 | -5/Zhirov | Discovered new exit (range 3) 13997 | -5/Zhirov | Learned location of Quarantine (-2) 13997 | -5/Zhirov | Learned location of Testing (-3) 13997 | -5/Zhirov | Learned location of Command (-1) 14011 | -5/Zhirov | Found Alien Artifact 14011 | -5/Zhirov | Identified Integrated Dissipator 14011 | -5/Zhirov | Installed Integrated Dissipator, increased core heat dissipation (+20) 14021 | -5/Zhirov | Found Alien Artifact 14090 | -5/Zhirov | Identified exit to Proximity Caves 14090 | -5/Zhirov | Entered Proximity Caves 14093 | -4/Proximity Caves | Spotter reported a threat 14094 | -4/Proximity Caves | Spotter reported a threat 14201 | -4/Proximity Caves | Learned location of 1 exit from Research 14270 | -4/Proximity Caves | Discovered exit to Factory (range 6) 14421 | -4/Proximity Caves | Received a Behemoth hack from an annoying Tinkerer 14549 | -4/Proximity Caves | Entered Factory 14549 | -4/Factory | Evolved 2 slots: Propulsion x1, Utility x1 14550 | -4/Factory | Identified exit to Research 14551 | -4/Factory | Identified exit to Upper Caves 14626 | -4/Factory | Loaded intel: 8 recycling unit locations 14626 | -4/Factory | Learned location of Protoforge (-2) 14715 | -4/Factory | Noticed a derelict Sapper rigging charges 14799 | -4/Factory | Search patrols dispatched 15074 | -4/Factory | Fabricated Cmb. Linear Gravjet? 15146 | -4/Factory | Manually triggered Chute Trap 15146 | -4/Factory | Sucked down chute 15146 | -4/Factory | Entered Waste 15147 | -4/Waste | Forged Quantum Companion 15147 | -4/Waste | Joined by Warlord forces that had cleared the area 15288 | -4/Waste | Build established: Hacker-Ninja 15372 | -4/Waste | Discovered new exit (range 12) 15391 | -4/Waste | Found Prototype Launcher 15391 | -4/Waste | Identified Adv. Micro-nuke Launcher 15418 | -4/Waste | Identified exit to Factory 15516 | -4/Waste | A Compactor rumbled back to life 15516 | -4/Waste | Spotted C-40 Crusher 15519 | -4/Waste | Allies destroyed C-40 Crusher 15581 | -4/Waste | Found Prototype Device 15581 | -4/Waste | Identified Exp. Actuator Array 15585 | -4/Waste | Entered Factory 15585 | -4/Factory | Accompanied by 18 allies 15615 | -4/Factory | Loaded intel: 8 recycling unit locations 15672 | -4/Factory | Discovered exit to Upper Caves (range 10) 15859 | -4/Factory | Spotted B-86 Titan 16007 | -4/Factory | Garrison activated, responded to threat 16191 | -4/Factory | Discovered exit to Upper Caves (range 7) 16369 | -4/Factory | Fabricated Cld. Linear Gravjet? 16395 | -4/Factory | Entered Upper Caves 16396 | -4/Upper Caves | Identified exit to Upper Caves 16399 | -4/Upper Caves | Learned location of Armory (-3) 16408 | -4/Upper Caves | Entered a destroyed Warlord outpost 16430 | -4/Upper Caves | Encountered a Warlord checkpoint 16560 | -4/Upper Caves | Entered another Upper Caves area 16591 | -4/Upper Caves | Discovered exit to Research (range 13) 16632 | -4/Upper Caves | Spotted B-86 Titan 16919 | -4/Upper Caves | Discovered new exit (range 10) 16924 | -4/Upper Caves | Identified exit to Warlord 16946 | -4/Upper Caves | Entered Warlord 16946 | -4/Warlord | Accompanied by 1 ally 16965 | -4/Warlord | System corruption cleaned by Quarantine Array 17224 | -4/Warlord | Warlord's base attacked by MAIN.C 17248 | -4/Warlord | Found Prototype Energy Cannon 17248 | -4/Warlord | Identified Vortex Driver 17252 | -4/Warlord | Found Prototype Energy Gun 17252 | -4/Warlord | Identified Vortex Rail 17278 | -4/Warlord | Rebuked by Warlord 17297 | -4/Warlord | Found Prototype Reactor 17297 | -4/Warlord | Identified Vortex Chain Reactor 17300 | -4/Warlord | Found Prototype Processor 17300 | -4/Warlord | Identified Exp. Targeting Computer 17476 | -4/Warlord | P-80 Master assimilated allied 92-C5T(g) 17505 | -4/Warlord | Warlord forces counterattacked 17530 | -4/Warlord | Lost 7 allies 17594 | -4/Warlord | Build established: Hacker-Mutant 17722 | -4/Warlord | Lost 7 allies 17899 | -4/Warlord | Warlord base infiltrated, sounded retreat 17904 | -4/Warlord | Spotted Executioner 17904 | -4/Warlord | Spotted Executioner 17952 | -4/Warlord | Spotted Striker 17958 | -4/Warlord | Lost 8 allies 18047 | -4/Warlord | Spotted B-90 Cyclops 18060 | -4/Warlord | Discovered new exit (range 15) 18066 | -4/Warlord | Identified exit to Proximity Caves 18071 | -4/Warlord | Entered Proximity Caves 18080 | -3/Proximity Caves | Lost 6 allies 18112 | -3/Proximity Caves | Spotted B-86 Titan 18381 | -3/Proximity Caves | Discovered exit to Research (range 10) 18396 | -3/Proximity Caves | Entered Research 18396 | -3/Research | Evolved 2 slots: Utility x2 18397 | -3/Research | Identified exit to Testing 18398 | -3/Research | Identified exit to Armory 18398 | -3/Research | Identified exit to Research 18596 | -3/Research | Revision forces began assault on 0b10 18693 | -3/Research | Met up with Revision 17++ 18698 | -3/Research | Loaded intel: 5 recycling unit locations 18703 | -3/Research | Build established: Hacker-Ninja 18761 | -3/Research | Lost 4 allies 18867 | -3/Research | Found Prototype Protection 18867 | -3/Research | Identified Centrium Heavy Armor Plating 19034 | -3/Research | Spotted B-86 Titan 19035 | -3/Research | Befriended a Behemoth using the annoying Tinkerer's hack 19057 | -3/Research | Found Prototype Device 19057 | -3/Research | Identified Adv. Kinecellerator 19083 | -3/Research | Spotted B-86 Titan 19096 | -3/Research | Research terminal network offline 19104 | -3/Research | Entered Testing 19120 | -3/Testing | Lost 3 allies 19173 | -3/Testing | Spotted Striker 19189 | -3/Testing | Spotted Striker 19212 | -3/Testing | Found Prototype Energy Gun 19212 | -3/Testing | Identified Tachyon Dispersion Ray 19300 | -3/Testing | Found Prototype Device 19300 | -3/Testing | Identified Exp. Hardlight Generator 19354 | -3/Testing | Found Prototype Reactor 19354 | -3/Testing | Identified Zero-point Reactor 19360 | -3/Testing | Found Zero-point Reactor 19588 | -3/Testing | Found Prototype Processor 19588 | -3/Testing | Identified Spectral Analyzer 19634 | -3/Testing | Found Prototype Energy Cannon 19634 | -3/Testing | Identified Cld. Nova Cannon 19657 | -3/Testing | Entered Research 19657 | -2/Research | Evolved 2 slots: Utility x2 19693 | -2/Research | Loaded intel: 5 recycling unit locations 19698 | -2/Research | Spotted B-90 Cyclops 19698 | -2/Research | Befriended a Behemoth using the annoying Tinkerer's hack 20086 | -2/Research | Discovered new exit (range 14) 20102 | -2/Research | Identified exit to Quarantine 20103 | -2/Research | Entered Quarantine 20445 | -2/Quarantine | Discovered new exit (range 14) 20474 | -2/Quarantine | Cryocooling Duct disabled 20483 | -2/Quarantine | Unchained authorized (6S-H0T) 20489 | -2/Quarantine | Ambient heat levels rising (+20) 20489 | -2/Quarantine | Non-combat units ordered to evacuate 20531 | -2/Quarantine | Spotted Fortress 20575 | -2/Quarantine | Discovered new exit (range 14) 20577 | -2/Quarantine | Discovered new exit (range 9) 20580 | -2/Quarantine | Identified exit to Protoforge 20582 | -2/Quarantine | Identified exit to Section 7 20584 | -2/Quarantine | Entered Protoforge 20645 | -2/Protoforge | Repaired Broken Cmb. Gravmag System+ 20692 | -2/Protoforge | Discovered new exit (range 16) 20719 | -2/Protoforge | Identified exit to Access 20777 | -2/Protoforge | Superfortress began startup sequence 20821 | -2/Protoforge | Spotted Overlord 20822 | -2/Protoforge | Found Prototype Device 20822 | -2/Protoforge | Identified Cep. Weapon Articulator 21165 | -2/Protoforge | Found Prototype Protection 21165 | -2/Protoforge | Identified Cep. Core Shell 21173 | -2/Protoforge | Found Prototype Launcher 21173 | -2/Protoforge | Identified Cep. Concussive Dispersal Blaster 21261 | -2/Protoforge | Spotted EXE-6 21261 | -2/Protoforge | Spotted EXE-6 21272 | -2/Protoforge | Spotted Decapitator 21273 | -2/Protoforge | Spotted Decapitator 21284 | -2/Protoforge | UFD initiated attack on Protoforge 21284 | -2/Protoforge | Loaded intel: 3 recycling unit locations 21302 | -2/Protoforge | Found Prototype Processor 21302 | -2/Protoforge | Identified Exp. Core Analyzer 21305 | -2/Protoforge | Found Prototype Processor 21305 | -2/Protoforge | Identified Exp. Armor Integrity Analyzer 21312 | -2/Protoforge | Found Prototype Device 21312 | -2/Protoforge | Identified Exp. Kinecellerator 21320 | -2/Protoforge | Optimus greeted in Protoforge 21361 | -2/Protoforge | Spotted EXE-6 21364 | -2/Protoforge | Spotted EXE-6 21364 | -2/Protoforge | Destroyed EXE-6 21370 | -2/Protoforge | Destroyed EXE-6 21373 | -2/Protoforge | Found Exp. Core Analyzer 21457 | -2/Protoforge | Fabricated Cmb. Linear Gravjet? 21488 | -2/Protoforge | Fabricated Cld. Antigrav System? 21608 | -2/Protoforge | Found UFD Drillbomb 21645 | -2/Protoforge | Spotted Executioner 21645 | -2/Protoforge | Spotted Striker 21651 | -2/Protoforge | Spotted Executioner 21665 | -2/Protoforge | Rewired Executioner 21672 | -2/Protoforge | Found Exp. Core Analyzer 21696 | -2/Protoforge | Spotted Hotshot 21704 | -2/Protoforge | Spotted Striker 21705 | -2/Protoforge | Spotted Executioner 21709 | -2/Protoforge | Lost 4 parts (3u1w) 21726 | -2/Protoforge | Spotted Hotshot 21742 | -2/Protoforge | Destroyed Executioner 21746 | -2/Protoforge | Found Exp. Core Analyzer 21763 | -2/Protoforge | Destroyed 7 combat bots 21767 | -2/Protoforge | Lost 22 allies 21772 | -2/Protoforge | Destroyed Hotshot 21797 | -2/Protoforge | Spotted Executioner 21797 | -2/Protoforge | Spotted Executioner 21846 | -2/Protoforge | Lost 3 allies 21876 | -2/Protoforge | Installed UFD Drillbomb at designated target 21876 | -2/Protoforge | UFD reported confirmed Drillbomb installation 21919 | -2/Protoforge | Found UFD Drillbomb 21934 | -2/Protoforge | Spotted Striker 21935 | -2/Protoforge | Spotted Executioner 21958 | -2/Protoforge | Spotted Hotshot 21958 | -2/Protoforge | Spotted Hotshot 21962 | -2/Protoforge | Build established: Scavenger-Mutant 21996 | -2/Protoforge | Installed UFD Drillbomb at designated target 21996 | -2/Protoforge | UFD reported confirmed Drillbomb installation 21998 | -2/Protoforge | Spotted B-90 Cyclops 22006 | -2/Protoforge | Lost 3 allies 22026 | -2/Protoforge | Destroyed Hotshot 22093 | -2/Protoforge | Lost 6 allies 22108 | -2/Protoforge | UFD reported confirmed Drillbomb installation 22126 | -2/Protoforge | UFD reported confirmed Drillbomb installation 22149 | -2/Protoforge | Found Exp. Core Analyzer 22195 | -2/Protoforge | Found UFD Drillbomb 22314 | -2/Protoforge | Installed UFD Drillbomb at designated target 22314 | -2/Protoforge | UFD reported confirmed Drillbomb installation 22423 | -2/Protoforge | Found UFD Drillbomb 22451 | -2/Protoforge | Spotted Executioner 22451 | -2/Protoforge | Spotted Executioner 22597 | -2/Protoforge | Installed UFD Drillbomb at designated target 22597 | -2/Protoforge | UFD reported confirmed Drillbomb installation 22610 | -2/Protoforge | Spotted Executioner 22612 | -2/Protoforge | Spotted Executioner 22617 | -2/Protoforge | Destroyed Executioner 22690 | -2/Protoforge | Lost 6 allies 22807 | -2/Protoforge | Spotted Executioner 22842 | -2/Protoforge | Spotted Executioner 22858 | -2/Protoforge | Spotted Striker 22930 | -2/Protoforge | Found UFD Drillbomb 22932 | -2/Protoforge | Lost 16 allies 22947 | -2/Protoforge | Spotted Executioner 22964 | -2/Protoforge | Spotted Executioner 22987 | -2/Protoforge | Destroyed Executioner 23013 | -2/Protoforge | Core integrity fell below 50% 23018 | -2/Protoforge | Spotted Executioner 23018 | -2/Protoforge | Spotted Striker 23034 | -2/Protoforge | Destroyed Striker 23048 | -2/Protoforge | Found Exp. Core Analyzer 23073 | -2/Protoforge | Lost 4 allies 23084 | -2/Protoforge | Found 0bPrime Scrap Suit 23153 | -2/Protoforge | Spotted Striker 23156 | -2/Protoforge | Spotted Striker 23166 | -2/Protoforge | Lost 3 allies 23216 | -2/Protoforge | Lost 3 allies 23238 | -2/Protoforge | Installed UFD Drillbomb at designated target 23238 | -2/Protoforge | UFD reported confirmed Drillbomb installation 23239 | -2/Protoforge | Spotted Striker 23240 | -2/Protoforge | Spotted Striker 23240 | -2/Protoforge | Destroyed Striker 23244 | -2/Protoforge | Destroyed Striker 23250 | -2/Protoforge | Spotted Executioner 23250 | -2/Protoforge | Destroyed Executioner 23287 | -2/Protoforge | Found UFD Drillbomb 23295 | -2/Protoforge | Spotted Executioner 23302 | -2/Protoforge | Destroyed Executioner 23304 | -2/Protoforge | Spotted Executioner 23305 | -2/Protoforge | P-80 Master assimilated allied FD-JQH(E) 23336 | -2/Protoforge | Spotted Executioner 23338 | -2/Protoforge | Spotted Executioner 23339 | -2/Protoforge | Spotted Striker 23375 | -2/Protoforge | Lost 12 allies 23564 | -2/Protoforge | Spotted Striker 23564 | -2/Protoforge | Spotted Striker 23564 | -2/Protoforge | Spotted Executioner 23598 | -2/Protoforge | Destroyed Striker 23605 | -2/Protoforge | Lost 9 allies 23616 | -2/Protoforge | Spotted Executioner 23619 | -2/Protoforge | Spotted Executioner 23619 | -2/Protoforge | Spotted Striker 23619 | -2/Protoforge | Spotted Executioner 23641 | -2/Protoforge | Destroyed Striker 23662 | -2/Protoforge | Destroyed 9 combat bots 23663 | -2/Protoforge | Lost 3 parts (1p2u) 23674 | -2/Protoforge | Lost 5 allies 23691 | -2/Protoforge | Spotted Executioner 23691 | -2/Protoforge | Spotted Executioner 23732 | -2/Protoforge | Lost 8 allies 23749 | -2/Protoforge | Destroyed Executioner 23782 | -2/Protoforge | Spotted Executioner 23791 | -2/Protoforge | Spotted Executioner 23816 | -2/Protoforge | Destroyed Executioner 23826 | -2/Protoforge | Core integrity fell below 20% 23858 | -2/Protoforge | Spotted Striker 23865 | -2/Protoforge | Spotted Executioner 23872 | -2/Protoforge | Found 0bPrime Scrap Suit 23913 | -2/Protoforge | Found Exp. Targeting Computer 23925 | -2/Protoforge | Lost 4 allies 23935 | -2/Protoforge | Spotted Striker 23941 | -2/Protoforge | Spotted Executioner 23942 | -2/Protoforge | Spotted Executioner 23943 | -2/Protoforge | Spotted Executioner 23958 | -2/Protoforge | System corruption reached 10% 23958 | -2/Protoforge | Destroyed Striker 23960 | -2/Protoforge | Destroyed by H-88 Terminator with KE Penetrator Last Messages --------------- 23954_ Penetrated by Slug. 23954_ Acquired Ovr. Railgun. 23956_ Slug penetrates Executioner. Quantum Companion releases a shadow of itself that zips off towards Striker. 23957_ Penetrated by Slug. 23957_ Slug penetrates Wall. 23958_ Penetrated by Slug. Quantum Companion releases a shadow of itself that zips off towards Striker. 23958_ Striker destroyed. 23959_ Penetrated by Slug. 23959_ Slug penetrates Executioner. 23959_ G-73 Enforcer suffers critical hit (Destroy). 23959_ Destroyed Myomer Leg. 23959_ Lgt. Quantum Reactor destroyed. 23959_ Deflected attack with Quantum Companion. Quantum Companion: "Away with you!" 23960_ Penetrated by Slug. Map ----- +----------------------------------------------------+ | ### ? + """"" ###### """ ## ## " | | ############ ### ""T"" " " " # # """ ## ## " | | #####? # ### " " " ###### """ ## ## | | + # ### " " " ###### ## ## | | #### """ # ### ###### ## "# | | #### """ # ######"##+####"""########+##" """ | | ?#### """ + % !%! = "T [ | | #### ######### =%%[=%! ]% "" | | +################## #!]%!/*!* !! % | | ########### ##!###%##"############ ### | | # ###"#"###+##!#####"################## | | # # !!= ################## | | # < # " ! ################## | | " #% """ #### ######### | | """" " # # % "= #### ! | | """ "" " %/*% """"=*! #### ! | | # ;E%! """*%! #### | | " "% % *=="!!! [! #### ######### | | ###"####" "%; gs%g%%%= =%! ##### ########## | | # !#;;!=E[!#/;!;=;;######## ########## | | "" """" " %!=sg[!%!![* ; ####### ########## | | "" """" # i%|!h!!=* % ; ####### ########## | | "" """" # % =E*!/=!* ; ## #### | | "" """" # !p!%![% =[! ; ### #### | | ###""""""#*;;;!%!!=; # #### [ | | ## %%% !*%@!!= # ############"""### | | #####+###" ![ =% =![ =*%%!!*&* #####" # | | ##### ####!%|=%/ =%[ ===%=[**= ####% " "" # | | # ###" = "[ [%[!!]%[!%!!%! ###" " | | #%## " ""!"!!%!]!=*=%=*%!=!;;##"" % = " | | #%"# #"###=!;%[==![%==!%[&%= " !%!/[ " | | #=""""%!!*%*!!;!![=%!*!!%!%[m% ; !"=%"*[ # | | %=* ! ![%!=%= |[!!%%%%%!=%[==[ % % "%%%=!%!! # | | =%/]%=!%=[![!! %!!=*[%%=!*=[*% #""#!!!%!!""" | | [% ! !*%%[! %%%%[ ]!%[%%!%[* % ; "=%!%%[!% | | # "" ! % %|!!*=%=!" """ ### [!%=!= | | #### " ;;;;;##%*!!! """S""" ### & !=== | | #### """" %# #%=[ ; ### !""""""/ | | ###" """" # # = ;;;########## "" % %% | | # # " # # ## "" " | | ##### # " " " " ## #!% "% | | # % # " " ## #"= % | | + # """ # " ## #" | | # #"###### """ # # ## "" ! % | | # "####### """ # # ### #####"!" | | # ######## "S " % # ### ## !! | | # ######## "" " # ### #### ! | | # #######" "" " "##"#""####### ##### | | # " " ! ####### ##### " | | # #########"""""= % % % # # #######" | +----------------------------------------------------+ Best States ------------- Heat Dissipation 104 Energy Generation 57 Energy Capacity 1340 Matter Stores 300 Matter Capacity 300 Sight Range 24 Robot Scan Range 18 Terrain Scan Range 18 Terrain Scan Density 1210 Jamming Range 16 Cloak Strength 4 Armor Coverage 600 Resistance: KI 30 Resistance: TH 30 Core Shielding 90 Propulsion Shielding 15 Melee Speed Boost 20 Phase Shifting 15 Evasion (%) 86 Targeting Accuracy 42 Melee Accuracy 24 Core Analysis 12 Armor Integrity Analysis 40 Recoil Reduction 2 Force Boost 40 Offensive Hacking 28 Defensive Hacking 14 Authchip Count 2 Item Schematics ----------------- Hcp. Storage Unit | -10/Materials | Hacked Cmb. Linear Gravjet | -5/Factory | Scanalyzed Assault Drone Bay | -5/Zhirov | Free Exp. Heat Sink | -5/Zhirov | Free Exp. Optical Array | -5/Zhirov | Free Imp. Arc Thrower | -5/Zhirov | Free Cld. Linear Gravjet | -4/Factory | Scanalyzed Cld. Antigrav System | -3/Research | Scanalyzed Ionic Axe | -2/Protoforge | Archive Imp. Matter Neutralizer | -2/Protoforge | Archive Robot Schematics ------------------ None Fabricated ------------ Lrn. Missile Launcher | x1 | -6/Factory | Preloaded Cmb. Linear Gravjet | x2 | -5/Factory | Authchip Cmb. Linear Gravjet | x2 | -4/Factory | Authchip Cld. Linear Gravjet | x1 | -4/Factory Cmb. Linear Gravjet | x2 | -2/Protoforge | Authchip Cld. Antigrav System | x1 | -2/Protoforge Repaired ---------- Cmb. Gravmag System | 1% | -2/Protoforge | Broken Studied --------- Cmb. Gravmag System | -4/Factory | Hacked Adv. Remote Datajack | -3/Testing | Hacked Lrn. Missile Launcher | -3/Testing | Hacked Cmb. Linear Gravjet | -3/Testing | Hacked Imp. Remote Datajack | -3/Testing | Hacked Cmb. Antigrav System | -2/Protoforge | Hacked Alien Tech Used ----------------- Integrated Dissipator Achievements -------------- Drive-By Fine I'll Do It Myself Friends Forever Hackathon Nice Directions, Buddy Perfect Aim Physics Protects Ponder That! Super-what Now? Suspicious The Better Part Of Valor We Are One Well Done Challenges ------------ None Game ------ Seed HeartHeavyMegashotty Manual? 0 Play Time 05:06:44 Cumulative 169.6 hours Start 2025.10.09 @ 16:12:51 End 2025.10.13 @ 21:09:03 Sessions 21 Manual Loads 0 Difficulty Rogue Special Mode None Game No. 144 Rogue 144 Adventurer 0 Explorer 0 Win Type - Total 6 Types 5/0/1/0/0/0/0/0/0/0 Lore% 77 Gallery% 68 Achievement% 50 Wizard Run 0 Options --------- Layout 1 ASCII 0 Keyboard 1 Movement Arrows Keybinds 0 Fullscreen 1 Font 24/Smallcaps Map View 50x40 Zoom Use 0% Tactical HUD 1 Map Filters NONE Filters NONE Steam 1 RUN: 0c521591-317f-4fa7-8ed9-80d2642a8ab1